Workbook

Sheet ORÇAMENTO
A1: <---- NUMERAR SERVIÇOS PARA CPU | E1: Ministério do Desenvolvimento Regional
E2: Companhia de Desenvolvimento dos Vales do São Francisco e do Parnaíba
E3: 1ª Superintendência Regional
B5: OBRA: | C5: PAVIMENTAÇÃO ASFÁLTICA EM CBUQ - ESTRADA PARA SANTANA DO MUNDO NOVO (JURAMENTO / MG) | J5: BDI Serviços (%): | L5: ='BDI SERV'!E26 -> 22.26
B6: DATA: | C6: ABRIL / 2025 | I6: BDI Diferenciado Serviços (%): | L6: ='BDI FORN'!D31 -> 15
B7: PRAZO DE EXECUÇÃO: 150 DIAS | I7: BDI Fornecimentos (%): | L7: ='BDI FORN'!D31 -> 15
B8: PLANILHA DE ORÇAMENTAÇÃO
B9: ITEM | C9: CÓDIGO | D9: FONTE | E9: DISCRIMINAÇÃO | F9: TIPO | G9: UNID. | H9: QUANT. | I9: VR.UNIT.S/BDI | J9: PR. UNIT.C/BDI | K9: C. TOT.S/BDI | L9: P. TOT.C/BDI
A10: A | B10: 1 | E10: SERVIÇOS PRELIMINARES | K10: =SUM(K11:K16) -> 132314.08 | L10: =SUM(L11:L16) -> 161676.58
A11: 1 | B11: 1.1 | C11: CPU.1 | D11: CODEVASF | E11: MOBILIZAÇÃO E DESMOBILIZAÇÃO | F11: SERV | G11: GL | H11: 1 | I11: =VLOOKUP(A11,'CPU-SERV'!A:K,11,0) -> 6943.14 | J11: =TRUNC(_xlfn.IFS(F11="SERV",I11*(1+$L$5/100),F11="SERV DIF",I11*(1+$L$6/100),F11="FORN",I11*(1+$L$7/100)),2) -> 8488.68 | K11: =TRUNC(H11*I11,2) -> 6943.14 | L11: =TRUNC(H11*J11,2) -> 8488.68
A12: 2 | B12: 1.2 | C12: CPU.2 | D12: CODEVASF | E12: ADMINISTRAÇÃO LOCAL | F12: SERV | G12: GL | H12: 1 | I12: =VLOOKUP(A12,'CPU-SERV'!A:K,11,0) -> 106670.22 | J12: =TRUNC(_xlfn.IFS(F12="SERV",I12*(1+$L$5/100),F12="SERV DIF",I12*(1+$L$6/100),F12="FORN",I12*(1+$L$7/100)),2) -> 130415.01 | K12: =TRUNC(H12*I12,2) -> 106670.22 | L12: =TRUNC(H12*J12,2) -> 130415.01
A13: 3 | B13: 1.3 | C13: CPU.3 | D13: CODEVASF | E13: CANTEIRO DE OBRAS | F13: SERV | G13: GL | H13: 1 | I13: =VLOOKUP(A13,'CPU-SERV'!A:K,11,0) -> 11641.05 | J13: =TRUNC(_xlfn.IFS(F13="SERV",I13*(1+$L$5/100),F13="SERV DIF",I13*(1+$L$6/100),F13="FORN",I13*(1+$L$7/100)),2) -> 14232.34 | K13: 11641.05 | L13: 14232.34
A14: 4 | B14: 1.4 | C14: 103689 | D14: SINAPI | E14: PLACA DE OBRA EM CHAPA DE AÇO GALVANIZADO | F14: SERV | G14: M2 | H14: 4 | I14: =VLOOKUP(A14,'CPU-SERV'!A:K,11,0) -> 351.42 | J14: =TRUNC(_xlfn.IFS(F14="SERV",I14*(1+$L$5/100),F14="SERV DIF",I14*(1+$L$6/100),F14="FORN",I14*(1+$L$7/100)),2) -> 429.64 | K14: 1405.68 | L14: 1718.56
A15: 5 | B15: 1.5 | C15: 5502985 | D15: SICRO | E15: LIMPEZA MECANIZADA DE CAMADA VEGETAL | F15: SERV | G15: M2 | H15: 1600 | I15: =VLOOKUP(A15,'CPU-SERV'!A:K,11,0) -> 0.56 | J15: =TRUNC(_xlfn.IFS(F15="SERV",I15*(1+$L$5/100),F15="SERV DIF",I15*(1+$L$6/100),F15="FORN",I15*(1+$L$7/100)),2) -> 0.68 | K15: 896 | L15: 1088
A16: 6 | B16: 1.6 | C16: 78472 | D16: SINAPI | E16: SERVIÇOS TOPOGRÁFICOS PARA PAVIMENTAÇÃO, INCLUSIVE LEVANTAMENTO PLANIALTIMÉTRICO CADASTRAL, GERAÇÃO DE NOTAS DE SERVIÇO, SEÇÕES TRANSVERSAIS E GREIDE, ESTAQUEAMENTO E ACOMPANHAMENTO EXECUTIVO | F16: SERV | G16: M2 | H16: 12199.996 | I16: =VLOOKUP(A16,'CPU-SERV'!A:K,11,0) -> 0.39 | J16: =TRUNC(_xlfn.IFS(F16="SERV",I16*(1+$L$5/100),F16="SERV DIF",I16*(1+$L$6/100),F16="FORN",I16*(1+$L$7/100)),2) -> 0.47 | K16: 4757.99 | L16: 5733.99
A17: B | B17: 2 | E17: TERRAPLANAGEM E PAVIMENTAÇÃO | K17: =SUM(K18:K23) -> 564399.2 | L17: =SUM(L18:L23) -> 689846.4
A18: 7 | B18: 2.1 | C18: 5502114 | D18: SICRO | E18: ESCAVAÇÃO, CARGA E TRANSPORTE DE MATERIAL DE 1ª CATEGORIA - DMT 1.000 A 1.200M, CAMINHO DE SERVIÇO EM REVESTIMENTO PRIMÁRIO | F18: SERV | G18: M3 | H18: 1900 | I18: =VLOOKUP(A18,'CPU-SERV'!A:K,11,0) -> 6.73 | J18: =TRUNC(_xlfn.IFS(F18="SERV",I18*(1+$L$5/100),F18="SERV DIF",I18*(1+$L$6/100),F18="FORN",I18*(1+$L$7/100)),2) -> 8.22 | K18: =TRUNC(H18*I18,2) -> 12787 | L18: =TRUNC(H18*J18,2) -> 15618
A19: 10 | B19: 2.3 | C19: 4011209 | D19: SICRO | E19: REGULARIZAÇÃO E COMPACTAÇÃO DO SUBLEITO | F19: SERV | G19: M2 | H19: 12200 | I19: =VLOOKUP(A19,'CPU-SERV'!A:K,11,0) -> 1.54 | J19: =TRUNC(_xlfn.IFS(F19="SERV",I19*(1+$L$5/100),F19="SERV DIF",I19*(1+$L$6/100),F19="FORN",I19*(1+$L$7/100)),2) -> 1.88 | K19: 18788 | L19: 22936
A20: 11 | B20: 2.4 | C20: 4011276 | D20: SICRO | E20: EXECUÇÃO E COMPACTAÇÃO DE BASE E OU SUB BASE PARA PAVIMENTAÇÃO DE BICA CORRIDA - EXCLUSIVE TRANSPORTE | F20: SERV | G20: M3 | H20: 1840 | I20: =VLOOKUP(A20,'CPU-SERV'!A:K,11,0) -> 149.73 | J20: =TRUNC(_xlfn.IFS(F20="SERV",I20*(1+$L$5/100),F20="SERV DIF",I20*(1+$L$6/100),F20="FORN",I20*(1+$L$7/100)),2) -> 183.05 | K20: 275503.2 | L20: 336812
A21: 12 | B21: 2.5 | C21: 4011352 | D21: SICRO | E21: IMPRIMAÇÃO COM EMULSÃO ASFÁLTICA (EAI) | F21: SERV | G21: M2 | H21: 12200 | I21: =VLOOKUP(A21,'CPU-SERV'!A:K,11,0) -> 0.4 | J21: =TRUNC(_xlfn.IFS(F21="SERV",I21*(1+$L$5/100),F21="SERV DIF",I21*(1+$L$6/100),F21="FORN",I21*(1+$L$7/100)),2) -> 0.48 | K21: 4880 | L21: 5856
A22: 13 | B22: 2.6 | C22: 4011353 | D22: SICRO | E22: PINTURA DE LIGAÇÃO COM EMULSÃO ASFÁLTICA RR-1C | F22: SERV | G22: M2 | H22: 10500 | I22: =VLOOKUP(A22,'CPU-SERV'!A:K,11,0) -> 0.27 | J22: =TRUNC(_xlfn.IFS(F22="SERV",I22*(1+$L$5/100),F22="SERV DIF",I22*(1+$L$6/100),F22="FORN",I22*(1+$L$7/100)),2) -> 0.33 | K22: 2835 | L22: 3465
A23: 14 | B23: 2.7 | C23: 4011463 | D23: SICRO | E23: EXECUÇÃO DE PAVIMENTO COM APLICAÇÃO DE CONCRETO ASFÁLTICO USINADO A QUENTE (CBUQ), CAMADA DE ROLAMENTO - EXCLUSIVE TRANSPORTE | F23: SERV | G23: T | H23: 1260 | I23: =VLOOKUP(A23,'CPU-SERV'!A:K,11,0) -> 198.1 | J23: =TRUNC(_xlfn.IFS(F23="SERV",I23*(1+$L$5/100),F23="SERV DIF",I23*(1+$L$6/100),F23="FORN",I23*(1+$L$7/100)),2) -> 242.19 | K23: 249606 | L23: 305159.4
A24: C | B24: 3 | E24: TRANSPORTE DE MATERIAIS | K24: =SUM(K25:K28) -> 121858.8 | L24: =SUM(L25:L28) -> 148374.4
A25: 15 | B25: 3.1 | C25: 5915321 | D25: SICRO | E25: TRANSPORTE COM CAMINHÃO BASCULANTE, EM VIA URBANA PAVIMENTADA | F25: SERV | G25: TXKM | H25: 90000.00259 | I25: =VLOOKUP(A25,'CPU-SERV'!A:K,11,0) -> 0.65 | J25: =TRUNC(_xlfn.IFS(F25="SERV",I25*(1+$L$5/100),F25="SERV DIF",I25*(1+$L$6/100),F25="FORN",I25*(1+$L$7/100)),2) -> 0.79 | K25: =TRUNC(H25*I25,2) -> 58500 | L25: =TRUNC(H25*J25,2) -> 71100
A26: 16 | B26: 3.2 | C26: 5914434 | D26: SICRO | E26: TRANSPORTE COM CAMINHÃO CARROCERIA 9T, EM VIA URBANA PAVIMENTADA | F26: SERV | G26: TXKM | H26: 14000.00333 | I26: =VLOOKUP(A26,'CPU-SERV'!A:K,11,0) -> 0.74 | J26: =TRUNC(_xlfn.IFS(F26="SERV",I26*(1+$L$5/100),F26="SERV DIF",I26*(1+$L$6/100),F26="FORN",I26*(1+$L$7/100)),2) -> 0.9 | K26: 10360 | L26: 12600
A27: 17 | B27: 3.3 | C27: 5914612 | D27: SICRO | E27: TRANSPORTE DE MASSA ASFÁLTICA COM CAMINHÃO BASCULANTE, EM VIA URBANA PAVIMENTADA | F27: SERV | G27: TXKM | H27: 44000 | I27: =VLOOKUP(A27,'CPU-SERV'!A:K,11,0) -> 1.18 | J27: =TRUNC(_xlfn.IFS(F27="SERV",I27*(1+$L$5/100),F27="SERV DIF",I27*(1+$L$6/100),F27="FORN",I27*(1+$L$7/100)),2) -> 1.44 | K27: 51920 | L27: 63360
A28: 18 | B28: 3.4 | C28: 5914622 | D28: SICRO | E28: TRANSPORTE COM CAMINHÃO TANQUE DE TRANSPORTE DE MATERIAL ASFÁLTICO DE 30000 L, EM VIA URBANA PAVIMENTADA | F28: SERV | G28: TXKM | H28: 620 | I28: =VLOOKUP(A28,'CPU-SERV'!A:K,11,0) -> 1.74 | J28: =TRUNC(_xlfn.IFS(F28="SERV",I28*(1+$L$5/100),F28="SERV DIF",I28*(1+$L$6/100),F28="FORN",I28*(1+$L$7/100)),2) -> 2.12 | K28: 1078.8 | L28: 1314.4
A29: E | B29: 4 | E29: DRENAGEM E OBRAS COMPLEMENTARES | K29: =SUM(K30:K51) -> 397350.1 | L29: =SUM(L30:L51) -> 485770.65
A30: 19 | B30: 4.1 | C30: 94273 | D30: SINAPI | E30: ASSENTAMENTO DE GUIA (MEIO-FIO) PRÉ-MOLDADO DE CONCRETO - 100X15X13X30 CM (COMPRIMENTO X BASE INFERIOR X BASE SUPERIOR X ALTURA) - USO VIÁRIO | F30: SERV | G30: M | H30: 3800 | I30: =VLOOKUP(A30,'CPU-SERV'!A:K,11,0) -> 49.2 | J30: =TRUNC(_xlfn.IFS(F30="SERV",I30*(1+$L$5/100),F30="SERV DIF",I30*(1+$L$6/100),F30="FORN",I30*(1+$L$7/100)),2) -> 60.15 | K30: =TRUNC(H30*I30,2) -> 186960 | L30: =TRUNC(H30*J30,2) -> 228570
A31: 20 | B31: 4.2 | C31: 94287 | D31: SINAPI | E31: EXECUÇÃO DE SARJETA EM CONCRETO USINADO, MOLDADO IN LOCO - 30CM DE BASE X 5CM DE ALTURA | F31: SERV | G31: M | H31: 3599.99875 | I31: =VLOOKUP(A31,'CPU-SERV'!A:K,11,0) -> 22.2 | J31: =TRUNC(_xlfn.IFS(F31="SERV",I31*(1+$L$5/100),F31="SERV DIF",I31*(1+$L$6/100),F31="FORN",I31*(1+$L$7/100)),2) -> 27.14 | K31: 79919.97 | L31: 97703.96
A32: 21 | B32: 4.3 | C32: 4915724 | D32: SICRO | E32: CAIAÇÃO COM FIXADOR DE CAL | F32: SERV | G32: M2 | H32: 950 | I32: =VLOOKUP(A32,'CPU-SERV'!A:K,11,0) -> 1.86 | J32: =TRUNC(_xlfn.IFS(F32="SERV",I32*(1+$L$5/100),F32="SERV DIF",I32*(1+$L$6/100),F32="FORN",I32*(1+$L$7/100)),2) -> 2.27 | K32: 1767 | L32: 2156.5
A33: 22 | B33: 4.4 | C33: 2003103 | D33: SICRO | E33: ENTRADA PARA DESCIDA D'ÁGUA - EDA 01 - AREIA E BRITA COMERCIAIS | F33: SERV | G33: UNID. | H33: 3 | I33: =VLOOKUP(A33,'CPU-SERV'!A:K,11,0) -> 192.82 | J33: =TRUNC(_xlfn.IFS(F33="SERV",I33*(1+$L$5/100),F33="SERV DIF",I33*(1+$L$6/100),F33="FORN",I33*(1+$L$7/100)),2) -> 235.74 | K33: 578.46 | L33: 707.22
A34: 23 | B34: 4.5 | C34: 2003389 | D34: SICRO | E34: DESCIDA D'ÁGUA DE ATERRO TIPO RÁPIDO - DAR 01 - AREIA E BRITA COMERCIAIS | F34: SERV | G34: M | H34: 6 | I34: =VLOOKUP(A34,'CPU-SERV'!A:K,11,0) -> 228.56 | J34: =TRUNC(_xlfn.IFS(F34="SERV",I34*(1+$L$5/100),F34="SERV DIF",I34*(1+$L$6/100),F34="FORN",I34*(1+$L$7/100)),2) -> 279.43 | K34: 1371.36 | L34: 1676.58
A35: 24 | B35: 4.6 | C35: 2003453 | D35: SICRO | E35: DISSIPADOR DE ENERGIA - DEB 03 - AREIA, BRITA E PEDRA DE MÃO COMERCIAIS | F35: SERV | G35: UNID. | H35: 4 | I35: =VLOOKUP(A35,'CPU-SERV'!A:K,11,0) -> 960.73 | J35: =TRUNC(_xlfn.IFS(F35="SERV",I35*(1+$L$5/100),F35="SERV DIF",I35*(1+$L$6/100),F35="FORN",I35*(1+$L$7/100)),2) -> 1174.58 | K35: 3842.92 | L35: 4698.32
A36: 25 | B36: 4.7 | C36: 2003626 | D36: SICRO | E36: BOCA DE LOBO SIMPLES - GRELHA DE CONCRETO - AREIA E BRITA COMERCIAIS | F36: SERV | G36: UNID. | H36: 3 | I36: =VLOOKUP(A36,'CPU-SERV'!A:K,11,0) -> 914.82 | J36: =TRUNC(_xlfn.IFS(F36="SERV",I36*(1+$L$5/100),F36="SERV DIF",I36*(1+$L$6/100),F36="FORN",I36*(1+$L$7/100)),2) -> 1118.45 | K36: 2744.46 | L36: 3355.35
A37: 26 | B37: 4.8 | C37: 2003634 | D37: SICRO | E37: BOCA DE LOBO DUPLA - GRELHA DE CONCRETO - AREIA E BRITA COMERCIAIS | F37: SERV | G37: UNID. | H37: 2 | I37: =VLOOKUP(A37,'CPU-SERV'!A:K,11,0) -> 1764.65 | J37: =TRUNC(_xlfn.IFS(F37="SERV",I37*(1+$L$5/100),F37="SERV DIF",I37*(1+$L$6/100),F37="FORN",I37*(1+$L$7/100)),2) -> 2157.46 | K37: 3529.3 | L37: 4314.92
A38: 29 | B38: 4.9 | C38: 804013 | D38: SICRO | E38: CORPO DE BUEIRO SIMPLES TUBULAR DE CONCRETO (BSTC), D=0,40M - PA-1 - AREIA E BRITA COMERCIAIS | F38: SERV | G38: M | H38: 36 | I38: =VLOOKUP(A38,'CPU-SERV'!A:K,11,0) -> 264.79 | J38: =TRUNC(_xlfn.IFS(F38="SERV",I38*(1+$L$5/100),F38="SERV DIF",I38*(1+$L$6/100),F38="FORN",I38*(1+$L$7/100)),2) -> 323.73 | K38: 9532.44 | L38: 11654.28
A39: 31 | B39: 4.10 | C39: 804181a | D39: SICRO | E39: CORPO DE BUEIRO DUPLO TUBULAR DE CONCRETO (BDTC), D=0,60M - PA-1 - AREIA E BRITA COMERCIAIS | F39: SERV | G39: M | H39: 20 | I39: =VLOOKUP(A39,'CPU-SERV'!A:K,11,0) -> 936.07 | J39: =TRUNC(_xlfn.IFS(F39="SERV",I39*(1+$L$5/100),F39="SERV DIF",I39*(1+$L$6/100),F39="FORN",I39*(1+$L$7/100)),2) -> 1144.43 | K39: 18721.4 | L39: 22888.6
A40: 36 | B40: 4.11 | C40: 2003365 | D40: SICRO | E40: TRANSPOSIÇÃO DE SEGMENTO DE SARJETA - TSS 01 - AREIA E BRITA COMERCIAIS | F40: SERV | G40: M | H40: 10 | I40: =VLOOKUP(A40,'CPU-SERV'!A:K,11,0) -> 1045.37 | J40: =TRUNC(_xlfn.IFS(F40="SERV",I40*(1+$L$5/100),F40="SERV DIF",I40*(1+$L$6/100),F40="FORN",I40*(1+$L$7/100)),2) -> 1278.06 | K40: 10453.7 | L40: 12780.6
A41: 38 | B41: 4.12 | C41: 4805757 | D41: SICRO | E41: ESCAVAÇÃO MECÂNICA DE VALAS EM MATERIAL DE 1ª CATEGORIA | F41: SERV | G41: M3 | H41: 170 | I41: =VLOOKUP(A41,'CPU-SERV'!A:K,11,0) -> 6.63 | J41: =TRUNC(_xlfn.IFS(F41="SERV",I41*(1+$L$5/100),F41="SERV DIF",I41*(1+$L$6/100),F41="FORN",I41*(1+$L$7/100)),2) -> 8.1 | K41: 1127.1 | L41: 1377
A42: 39 | B42: 4.13 | C42: 4805756 | D42: SICRO | E42: APILOAMENTO MANUAL DE FUNDO DE VALA | F42: SERV | G42: M2 | H42: 90 | I42: =VLOOKUP(A42,'CPU-SERV'!A:K,11,0) -> 4.8 | J42: =TRUNC(_xlfn.IFS(F42="SERV",I42*(1+$L$5/100),F42="SERV DIF",I42*(1+$L$6/100),F42="FORN",I42*(1+$L$7/100)),2) -> 5.86 | K42: 432 | L42: 527.4
A43: 40 | B43: 4.14 | C43: 101574 | D43: SINAPI | E43: ESCORAMENTO DE VALA TIPO PONTALETEAMENTO - CONFECÇÃO, INSTALAÇÃO E RETIRADA | F43: SERV | G43: M2 | H43: 200 | I43: =VLOOKUP(A43,'CPU-SERV'!A:K,11,0) -> 15.06 | J43: =TRUNC(_xlfn.IFS(F43="SERV",I43*(1+$L$5/100),F43="SERV DIF",I43*(1+$L$6/100),F43="FORN",I43*(1+$L$7/100)),2) -> 18.41 | K43: 3012 | L43: 3682
A44: 41 | B44: 4.15 | C44: 4815671 | D44: SICRO | E44: REATERRO E COMPACTAÇÃO MANUAL DE VALAS COM SOQUETE VIBRATÓRIO | F44: SERV | G44: M3 | H44: 139.999 | I44: =VLOOKUP(A44,'CPU-SERV'!A:K,11,0) -> 16.68 | J44: =TRUNC(_xlfn.IFS(F44="SERV",I44*(1+$L$5/100),F44="SERV DIF",I44*(1+$L$6/100),F44="FORN",I44*(1+$L$7/100)),2) -> 20.39 | K44: 2335.18 | L44: 2854.57
A45: 42 | B45: 4.16 | C45: 94990 | D45: SINAPI | E45: EXECUÇÃO DE PASSEIO (CALÇADA) OU PISO DE CONCRETO MOLDADO IN LOCO, ACABAMENTO CONVENCIONAL, NÃO ARMADO | F45: SERV | G45: M3 | H45: 2 | I45: =VLOOKUP(A45,'CPU-SERV'!A:K,11,0) -> 696.66 | J45: =TRUNC(_xlfn.IFS(F45="SERV",I45*(1+$L$5/100),F45="SERV DIF",I45*(1+$L$6/100),F45="FORN",I45*(1+$L$7/100)),2) -> 851.73 | K45: 1393.32 | L45: 1703.46
A46: 43 | B46: 4.17 | C46: 5213489a | D46: SICRO | E46: PLACA EM AÇO - 1,50X0,60M - PELÍCULA RETRORREFLETIVA - FORNECIMENTO E INSTALAÇÃO, INCLUSIVE SUPORTE | F46: SERV | G46: UN. | H46: 5 | I46: =VLOOKUP(A46,'CPU-SERV'!A:K,11,0) -> 901.16 | J46: =TRUNC(_xlfn.IFS(F46="SERV",I46*(1+$L$5/100),F46="SERV DIF",I46*(1+$L$6/100),F46="FORN",I46*(1+$L$7/100)),2) -> 1101.75 | K46: 4505.8 | L46: 5508.75
A47: 44 | B47: 4.18 | C47: 5213464a | D47: SICRO | E47: PLACA DE ADVERTÊNCIA EM AÇO, LADO DE 60CM - PELÍCULA RETRORREFLETIVA - FORNECIMENTO E INSTALAÇÃO, INCLUSIVE SUPORTE | F47: SERV | G47: UN. | H47: 10 | I47: =VLOOKUP(A47,'CPU-SERV'!A:K,11,0) -> 716.58 | J47: =TRUNC(_xlfn.IFS(F47="SERV",I47*(1+$L$5/100),F47="SERV DIF",I47*(1+$L$6/100),F47="FORN",I47*(1+$L$7/100)),2) -> 876.09 | K47: 7165.8 | L47: 8760.9
A48: 45 | B48: 4.19 | C48: 5213440a | D48: SICRO | E48: PLACA DE REGULAMENTAÇÃO EM AÇO, D=60CM - PELÍCULA RETRORREFLETIVA - FORNECIMENTO E INSTALAÇÃO, INCLUSIVE SUPORTE | F48: SERV | G48: UN. | H48: 15 | I48: =VLOOKUP(A48,'CPU-SERV'!A:K,11,0) -> 716.55 | J48: =TRUNC(_xlfn.IFS(F48="SERV",I48*(1+$L$5/100),F48="SERV DIF",I48*(1+$L$6/100),F48="FORN",I48*(1+$L$7/100)),2) -> 876.05 | K48: 10748.25 | L48: 13140.75
A49: 48 | B49: 4.20 | C49: 5213401 | D49: SICRO | E49: PINTURA DE EIXO VIÁRIO SOBRE ASFALTO COM TINTA RETRORREFLETIVA A BASE DE RESINA ACRÍLICA COM MICROESFERAS DE VIDRO, APLICAÇÃO MECÂNICA COM DEMARCADORA AUTOPROPELIDA | F49: SERV | G49: M2 | H49: 764.99975 | I49: =VLOOKUP(A49,'CPU-SERV'!A:K,11,0) -> 29.17 | J49: =TRUNC(_xlfn.IFS(F49="SERV",I49*(1+$L$5/100),F49="SERV DIF",I49*(1+$L$6/100),F49="FORN",I49*(1+$L$7/100)),2) -> 35.66 | K49: 22315.04 | L49: 27279.89
A50: 49 | B50: 4.21 | C50: 5213360 | D50: SICRO | E50: TACHA REFLETIVA EM PLÁSTICO INJETADO - BIDIRECIONAL COM UM PINO - FORNECIMENTO E COLOCAÇÃO | F50: SERV | G50: UNID. | H50: 720 | I50: =VLOOKUP(A50,'CPU-SERV'!A:K,11,0) -> 31.08 | J50: =TRUNC(_xlfn.IFS(F50="SERV",I50*(1+$L$5/100),F50="SERV DIF",I50*(1+$L$6/100),F50="FORN",I50*(1+$L$7/100)),2) -> 37.99 | K50: 22377.6 | L50: 27352.8
A51: 50 | B51: 4.22 | C51: 5213405 | D51: SICRO | E51: PINTURA DE FAIXA DE PEDESTRE OU ZEBRADA TINTA RETRORREFLETIVA A BASE DE RESINA ACRÍLICA COM MICROESFERAS DE VIDRO, APLICAÇÃO MANUAL | F51: SERV | G51: M2 | H51: 60 | I51: =VLOOKUP(A51,'CPU-SERV'!A:K,11,0) -> 41.95 | J51: =TRUNC(_xlfn.IFS(F51="SERV",I51*(1+$L$5/100),F51="SERV DIF",I51*(1+$L$6/100),F51="FORN",I51*(1+$L$7/100)),2) -> 51.28 | K51: 2517 | L51: 3076.8
A52: F | B52: 5 | E52: FORNECIMENTOS - MATERIAL ASFÁLTICO (BDI DIFERENCIADO) | K52: =SUM(K53:K58) -> 447077.37 | L52: =SUM(L53:L58) -> 514138.47
A53: F1 | B53: 5.1 | C53: CPU.7 | D53: ANP | E53: AQUISIÇÃO DE EMULSÃO ASFÁLTICA PARA IMPRIMAÇÃO (EAI) - EXCLUSIVE TRANSPORTE | F53: FORN | G53: T | H53: 16 | I53: =VLOOKUP(A53,'CPU-FORNEC'!A:J,9,0) -> 3532.13 | J53: =TRUNC(_xlfn.IFS(F53="SERV",I53*(1+$L$5/100),F53="SERV DIF",I53*(1+$L$6/100),F53="FORN",I53*(1+$L$7/100)),2) -> 4061.94 | K53: =TRUNC(H53*I53,2) -> 56514.08 | L53: =TRUNC(H53*J53,2) -> 64991.04
A54: F2 | B54: 5.2 | C54: CPU.8 | D54: CODEVASF | E54: TRANSPORTE DE EMULSÃO ASFÁLTICA PARA IMPRIMAÇÃO (EAI) | F54: SERV DIF | G54: T | H54: 16 | I54: =VLOOKUP(A54,'CPU-FORNEC'!A:J,9,0) -> 401.49 | J54: =TRUNC(_xlfn.IFS(F54="SERV",I54*(1+$L$5/100),F54="SERV DIF",I54*(1+$L$6/100),F54="FORN",I54*(1+$L$7/100)),2) -> 461.71 | K54: 6423.84 | L54: 7387.36
A55: F3 | B55: 5.3 | C55: CPU.9 | D55: ANP | E55: AQUISIÇÃO DE EMULSAO ASFALTICA CATIONICA RR-1C - EXCLUSIVE TRANSPORTE | F55: FORN | G55: T | H55: 4.995 | I55: =VLOOKUP(A55,'CPU-FORNEC'!A:J,9,0) -> 3480.79 | J55: =TRUNC(_xlfn.IFS(F55="SERV",I55*(1+$L$5/100),F55="SERV DIF",I55*(1+$L$6/100),F55="FORN",I55*(1+$L$7/100)),2) -> 4002.9 | K55: 17386.54 | L55: 19994.48
A56: F4 | B56: 5.4 | C56: CPU.10 | D56: CODEVASF | E56: TRANSPORTE DE EMULSÃO ASFÁLTICA CATIONICA RR-1C | F56: SERV DIF | G56: T | H56: 4.995 | I56: =VLOOKUP(A56,'CPU-FORNEC'!A:J,9,0) -> 496.62 | J56: =TRUNC(_xlfn.IFS(F56="SERV",I56*(1+$L$5/100),F56="SERV DIF",I56*(1+$L$6/100),F56="FORN",I56*(1+$L$7/100)),2) -> 571.11 | K56: 2480.61 | L56: 2852.69
A57: F5 | B57: 5.5 | C57: CPU.11 | D57: ANP | E57: AQUISIÇÃO DE CONCRETO ASFÁLTICO DE PETRÓLEO - CAP 50/70 - EXCLUSIVE TRANSPORTE | F57: FORN | G57: T | H57: 70 | I57: =VLOOKUP(A57,'CPU-FORNEC'!A:J,9,0) -> 4815.2 | J57: =TRUNC(_xlfn.IFS(F57="SERV",I57*(1+$L$5/100),F57="SERV DIF",I57*(1+$L$6/100),F57="FORN",I57*(1+$L$7/100)),2) -> 5537.48 | K57: 337064 | L57: 387623.6
A58: F6 | B58: 5.6 | C58: CPU.12 | D58: CODEVASF | E58: TRANSPORTE DE CONCRETO ASFÁLTICO DE PETRÓLEO - CAP 50/70 | F58: SERV DIF | G58: T | H58: 70 | I58: =VLOOKUP(A58,'CPU-FORNEC'!A:J,9,0) -> 388.69 | J58: =TRUNC(_xlfn.IFS(F58="SERV",I58*(1+$L$5/100),F58="SERV DIF",I58*(1+$L$6/100),F58="FORN",I58*(1+$L$7/100)),2) -> 446.99 | K58: 27208.3 | L58: 31289.3
B59: TOTAL GERAL DA OBRA COM BDI | K59: =SUM(K10,K17,K24,K29,K52) -> 1662999.55 | L59: =SUM(L10,L17,L24,L29,L52) -> 1999806.5

Sheet CPU-SERV
A1: 1 | B1: 1ª/GRD | K1: =J37 -> 6943.14
B2: OBRA: | C2: PAVIMENTAÇÃO ASFÁLTICA EM CBUQ - ESTRADA PARA SANTANA DO MUNDO NOVO (JURAMENTO / MG)
B3: Custo Unitário de Referência | E3: Minas Gerais
E4: Janeiro/2025 | H4: Produção da equipe | I4: 0.5 | J4: =VLOOKUP(A1,ORÇAMENTO!$A$10:$L$59,7,1) -> GL
B5: CPU.1 | C5: MOBILIZAÇÃO E DESMOBILIZAÇÃO | I5: Valores em reais (R$)
B6: A - EQUIPAMENTOS | D6: Quantidade | E6: Utilização | G6: Custo Horário | J6: Custo
E7: Operativa | F7: Improdutiva | G7: Produtivo | H7: Improdutivo | J7: Horário Total
B8: E9687 | C8: Caminhão carroceria com capacidade de 5 t - 115 kW | D8: 4 | E8: 0.5 | F8: 0.5 | G8: 146.8808 | H8: 57.4231 | J8: =D8*(E8*G8+F8*H8) -> 408.6078
B9: E9575 | C9: Caminhão basculante com caçamba estanque com capacidade de 14 m³ - 210 kW | D9: 8 | E9: 1 | F9: 0 | G9: 309.8394 | H9: 90.4122 | J9: =D9*(E9*G9+F9*H9) -> 2478.7152
H10: Custo horário total de equipamentos | J10: =SUM(J8:J9) -> 2887.323
B11: B - MÃO DE OBRA | D11: Quantidade | E11: Unidade | G11: Custo Horário | H11: Custo Horário Total
B12: P9824 | C12: Servente | D12: 8 | E12: h | G12: 21.3355 | J12: =D12*G12 -> 170.684
J13: =D13*G13 -> 0
D14: Custo horário total de mão de obra | J14: =SUM(J12:J13) -> 170.684
D15: Custo horário total de execução | J15: =J10+J14 -> 3058.007
D16: Custo unitário de execução | J16: =J15/I4 -> 6116.014
H17: Custo do FIC | J17: 0
H18: Custo do FIT | J18: 0
B19: C - MATERIAL | D19: Quantidade | E19: Unidade | G19: Preço Unitário | H19: Custo Unitário
B20: - | C20: 0 | E20: 0 | G20: 0 | J20: =D20*G20 -> 0
B21: - | C21: 0 | E21: 0 | G21: 0 | J21: =D21*G21 -> 0
D22: Custo unitário total de material | J22: =SUM(J20:J21) -> 0
B23: D - ATIVIDADES AUXILIARES | D23: Quantidade | E23: Unidade | G23: Custo Unitário | H23: Custo Unitário
B24: 5914640 | C24: Transporte com cavalo mecânico com semirreboque com capacidade de 30 t - rodovia pavimentada | D24: 1451.1 | E24: tkm | G24: 0.57 | J24: =D24*G24 -> 827.127
B25: - | C25: 0 | D25: 0 | E25: 0 | G25: 0 | J25: =D25*G25 -> 0
D26: Custo total de atividades auxiliares | J26: =SUM(J24:J25) -> 827.127
H27: Subtotal | J27: =J16+J22+J26+J17+J18 -> 6943.141
B28: E - TEMPO FIXO | D28: Código | E28: Quantidade | F28: Unidade | H28: Custo Unitário | I28: Custo Unitário
B29: - | C29: 0 | D29: - | F29: 0 | H29: 0 | J29: =ROUNDDOWN(E29*H29,4) -> 0
B30: - | C30: 0 | D30: - | F30: 0 | H30: 0 | J30: =ROUNDDOWN(E30*H30,4) -> 0
D31: Custo unitário total de tempo fixo | J31: =SUM(J29:J30) -> 0
B32: F - MOMENTO DE TRANSPORTE | D32: Quantidade | E32: Unidade | F32: DMT | J32: Custo Unitário
F33: LN | G33: RP | H33: P
B34: - | C34: 0 | E34: tkm
B35: - | C35: 0 | E35: tkm
D36: Custo unitário total de transporte
F37: Custo unitário direto total | J37: =TRUNC(J27+J31,2) -> 6943.14
B38: Obs.
A40: =A1+1 -> 2 | B40: 1ª/GRD | K40: =J81 -> 106670.22
B41: OBRA: | C41: PAVIMENTAÇÃO ASFÁLTICA EM CBUQ - ESTRADA PARA SANTANA DO MUNDO NOVO (JURAMENTO / MG)
B42: Custo Unitário de Referência | E42: Minas Gerais
E43: Janeiro/2025 | H43: Produção da equipe | I43: 0.2 | J43: =VLOOKUP(A40,ORÇAMENTO!$A$10:$L$59,7,1) -> GL
B44: CPU.2 | C44: ADMINISTRAÇÃO LOCAL | I44: Valores em reais (R$)
B45: A - EQUIPAMENTOS | D45: Quantidade | E45: Utilização | G45: Custo Horário | J45: Custo
E46: Operativa | F46: Improdutiva | G46: Produtivo | H46: Improdutivo | J46: Horário Total
B47: - | C47: 0 | G47: 0 | H47: 0 | J47: =D47*(E47*G47+F47*H47) -> 0
B48: - | C48: 0 | G48: 0 | H48: 0 | J48: =D48*(E48*G48+F48*H48) -> 0
H49: Custo horário total de equipamentos | J49: =SUM(J47:J48) -> 0
B50: B - MÃO DE OBRA | D50: Quantidade | E50: Unidade | G50: Custo Horário | H50: Custo Horário Total
B51: P9812 | C51: Engenheiro | D51: 0.1998208758 | E51: mês | G51: 26055.5515 | J51: =D51*G51 -> 5206.443121
B52: P9840 | C52: Encarregado geral | D52: 1 | E52: mês | G52: 9923.372568 | J52: =D52*G52 -> 9923.372568
B53: P9876 | C53: Técnico de segurança do trabalho | D53: 0.5 | E53: mês | G53: 5491.87772 | J53: 2745.93886
B54: P9858 | C54: Laboratorista | D54: 0.5 | E54: mês | G54: 4464.08949 | J54: 2232.044745
B55: P9806 | C55: Auxiliar administrativo | D55: 0.25 | E55: mês | G55: 3130.43717 | J55: 782.6092925
D56: Custo horário total de mão de obra | J56: =SUM(J51:J55) -> 20890.40859
D57: Custo horário total de execução | J57: =J49+J56 -> 20890.40859
D58: Custo unitário de execução | J58: =J57/I43 -> 104452.0429
H59: Custo do FIC | J59: -
H60: Custo do FIT | J60: -
B61: C - MATERIAL | D61: Quantidade | E61: Unidade | G61: Preço Unitário | H61: Custo Unitário
B62: - | C62: 0 | D62: 0 | E62: 0 | G62: 0 | J62: =D62*G62 -> 0
B63: - | C63: 0 | D63: 0 | E63: 0 | G63: 0 | J63: 0
D64: Custo unitário total de material | J64: =SUM(J62:J63) -> 0
B65: D - ATIVIDADES AUXILIARES | D65: Quantidade | E65: Unidade | G65: Custo Unitário | H65: Custo Unitário
B66: 14250 | C66: Energia Elétrica | D66: 200 | E66: kwh | G66: 0.95 | J66: =D66*G66 -> 190
B67: 44480 | C67: Tarifa A - Água e Esgoto | D67: 20 | E67: m³ | G67: 17.97 | J67: =D67*G67 -> 359.4
B68: 5212560 | C68: Placa de advertência para sinalização de obras montada em suporte metálico móvel, lado 1,00 m - utilização de 600 ciclos - fornecimento, 01 implantação e 01 retirada diária | D68: 352 | E68: un.dia | G68: 3.89 | J68: =D68*G68 -> 1369.28
B69: Cotação | C69: Telefone | D69: 5 | E69: mês | G69: 59.9 | J69: =D69*G69 -> 299.5
D70: Custo total de atividades auxiliares | J70: =SUM(J66:J69) -> 2218.18
H71: Subtotal | J71: =J58+J64+J70 -> 106670.2229
B72: E - TEMPO FIXO | D72: Código | E72: Quantidade | F72: Unidade | H72: Custo Unitário | I72: Custo Unitário
B73: - | C73: 0 | D73: - | E73: 0 | F73: t | H73: 0 | J73: =ROUNDDOWN(E73*H73,4) -> 0
B74: - | C74: 0 | D74: - | E74: 0 | F74: t | H74: 0 | J74: =ROUNDDOWN(E74*H74,4) -> 0
D75: Custo unitário total de tempo fixo | J75: =SUM(J73:J74) -> 0
B76: F - MOMENTO DE TRANSPORTE | D76: Quantidade | E76: Unidade | F76: DMT | J76: Custo Unitário
F77: LN | G77: RP | H77: P
B78: - | C78: 0 | E78: tkm
B79: - | C79: 0 | E79: tkm
D80: Custo unitário total de transporte
F81: Custo unitário direto total | J81: =TRUNC(J71+J75,2) -> 106670.22
B82: Obs.
A84: =A40+1 -> 3 | B84: 1ª/GRD | K84: =J120 -> 11641.05
B85: OBRA: | C85: PAVIMENTAÇÃO ASFÁLTICA EM CBUQ - ESTRADA PARA SANTANA DO MUNDO NOVO (JURAMENTO / MG)
B86: Custo Unitário de Referência | E86: Minas Gerais
E87: Janeiro/2025 | H87: Produção da equipe | I87: 1 | J87: =VLOOKUP(A84,ORÇAMENTO!$A$10:$L$59,7,1) -> GL
B88: CPU.3 | C88: CANTEIRO DE OBRAS | I88: Valores em reais (R$)
B89: A - EQUIPAMENTOS | D89: Quantidade | E89: Utilização | G89: Custo Horário | J89: Custo
E90: Operativa | F90: Improdutiva | G90: Produtivo | H90: Improdutivo | J90: Horário Total
B91: - | C91: 0 | G91: 0 | H91: 0 | J91: =D91*(E91*G91+F91*H91) -> 0
B92: - | C92: 0 | G92: 0 | H92: 0 | J92: =D92*(E92*G92+F92*H92) -> 0
H93: Custo horário total de equipamentos | J93: =SUM(J91:J92) -> 0
B94: B - MÃO DE OBRA | D94: Quantidade | E94: Unidade | G94: Custo Horário | H94: Custo Horário Total
B95: P9824 | C95: Servente | D95: 8 | E95: h | G95: 21.3355 | J95: =D95*G95 -> 170.684
B96: P9808 | C96: Carpinteiro | D96: 8 | E96: h | G96: 26.4529 | J96: =D96*G96 -> 211.6232
D97: Custo horário total de mão de obra | J97: =SUM(J95:J96) -> 382.3072
D98: Custo horário total de execução | J98: =J93+J97 -> 382.3072
D99: Custo unitário de execução | J99: =J98/I87 -> 382.3072
H100: Custo do FIC | J100: -
H101: Custo do FIT | J101: -
B102: C - MATERIAL | D102: Quantidade | E102: Unidade | G102: Preço Unitário | H102: Custo Unitário
B103: M0053 | C103: Tela plástica em polipropileno na cor laranja para tapume - L = 1,2 m | D103: 100 | E103: m | G103: 1.775 | J103: =D103*G103 -> 177.5
B104: - | C104: 0 | D104: 0 | E104: 0 | G104: 0 | J104: =D104*G104 -> 0
D105: Custo unitário total de material | J105: =SUM(J103:J104) -> 177.5
B106: D - ATIVIDADES AUXILIARES | D106: Quantidade | E106: Unidade | G106: Custo Unitário | H106: Custo Unitário
B107: 10775 | C107: Locação de container 2,30 X 6,00 m, alt. 2,50 m, com 1 sanitário, para escritório, completo, sem divisórias internas | D107: 5 | E107: mês | G107: 985 | J107: =D107*G107 -> 4925
B108: 10779 | C108: Locação de container 2,30 X 4,30 m, alt. 2,50 M, p/ sanitário, c/ 5 bacias, 1 lavatório e 4 mictórios | D108: 5 | E108: mês | G108: 1231.25 | J108: =D108*G108 -> 6156.25
D109: Custo total de atividades auxiliares | J109: =SUM(J107:J108) -> 11081.25
H110: Subtotal | J110: =J99+J105+J109 -> 11641.0572
B111: E - TEMPO FIXO | D111: Código | E111: Quantidade | F111: Unidade | H111: Custo Unitário | I111: Custo Unitário
B112: - | C112: 0 | D112: - | E112: 0 | F112: t | H112: 0 | J112: =ROUNDDOWN(E112*H112,4) -> 0
B113: - | C113: 0 | D113: - | E113: 0 | F113: t | H113: 0 | J113: =ROUNDDOWN(E113*H113,4) -> 0
D114: Custo unitário total de tempo fixo | J114: =SUM(J112:J113) -> 0
B115: F - MOMENTO DE TRANSPORTE | D115: Quantidade | E115: Unidade | F115: DMT | J115: Custo Unitário
F116: LN | G116: RP | H116: P
B117: - | C117: 0 | D117: 0 | E117: tkm
B118: - | C118: 0 | D118: 0 | E118: tkm
D119: Custo unitário total de transporte
F120: Custo unitário direto total | J120: =TRUNC(J110+J114,2) -> 11641.05
B121: Obs.
A123: =A84+1 -> 4 | B123: 1ª/GRD | K123: =J161 -> 351.42
B124: OBRA: | C124: PAVIMENTAÇÃO ASFÁLTICA EM CBUQ - ESTRADA PARA SANTANA DO MUNDO NOVO (JURAMENTO / MG)
B125: Custo Unitário de Referência | E125: Minas Gerais
E126: Janeiro/2025 | H126: Produção da equipe | I126: 1 | J126: =VLOOKUP(A123,ORÇAMENTO!$A$10:$L$59,7,1) -> M2
B127: 103689 | C127: PLACA DE OBRA EM CHAPA DE AÇO GALVANIZADO | I127: Valores em reais (R$)
B128: A - EQUIPAMENTOS | D128: Quantidade | E128: Utilização | G128: Custo Horário | J128: Custo
E129: Operativa | F129: Improdutiva | G129: Produtivo | H129: Improdutivo | J129: Horário Total
B130: - | C130: 0 | G130: 0 | H130: 0 | J130: =D130*(E130*G130+F130*H130) -> 0
B131: - | C131: 0 | G131: 0 | H131: 0 | J131: =D131*(E131*G131+F131*H131) -> 0
H132: Custo horário total de equipamentos | J132: =SUM(J130:J131) -> 0
B133: B - MÃO DE OBRA | D133: Quantidade | E133: Unidade | G133: Custo Horário | H133: Custo Horário Total
B134: P9824 | C134: Servente | D134: 1.1186 | E134: h | G134: 21.3355 | J134: =D134*G134 -> 23.8658903
B135: P9808 | C135: Carpinteiro | D135: 0.3729 | E135: h | G135: 26.4529 | J135: =D135*G135 -> 9.86428641
D136: Custo horário total de mão de obra | J136: =SUM(J134:J135) -> 33.73017671
D137: Custo horário total de execução | J137: =J132+J136 -> 33.73017671
D138: Custo unitário de execução | J138: =J137/I126 -> 33.73017671
H139: Custo do FIC | J139: -
H140: Custo do FIT | J140: -
B141: C - MATERIAL | D141: Quantidade | E141: Unidade | G141: Preço Unitário | H141: Custo Unitário
B142: M1358 | C142: Sarrafo em madeira de terceira - E = 2,5 cm e L = 5 cm | D142: 6.4166 | E142: m | G142: 1.9666 | J142: =D142*G142 -> 12.61888556
B143: M1205 | C143: Prego de ferro | D143: 0.0245 | E143: kg | G143: 16.5445 | J143: =D143*G143 -> 0.40534025
B144: M0998 | C144: Madeira estrutural de eucalipto | D144: 0.022608 | E144: m³ | G144: 2418.0391 | J144: =D144*G144 -> 54.66702797
B145: 4813 | C145: Placa de obra (para construção civil) em chapa galvanizada *N. 22*, adesivada, de *2,4 X 1,2* m (sem postes para fixação) | D145: 1 | E145: m² | G145: 250 | J145: 250
D146: Custo unitário total de material | J146: =SUM(J142:J145) -> 317.6912538
B147: D - ATIVIDADES AUXILIARES | D147: Quantidade | E147: Unidade | G147: Custo Unitário | H147: Custo Unitário
B148: - | C148: 0 | D148: 0 | E148: 0 | G148: 0 | J148: =D148*G148 -> 0
B149: - | C149: 0 | D149: 0 | E149: 0 | G149: 0 | J149: =D149*G149 -> 0
D150: Custo total de atividades auxiliares | J150: =SUM(J148:J149) -> 0
H151: Subtotal | J151: =J138+J146+J150 -> 351.4214305
B152: E - TEMPO FIXO | D152: Código | E152: Quantidade | F152: Unidade | H152: Custo Unitário | I152: Custo Unitário
B153: - | C153: 0 | D153: - | E153: 0 | F153: t | H153: 0 | J153: =ROUNDDOWN(E153*H153,4) -> 0
B154: - | C154: 0 | D154: - | E154: 0 | F154: t | H154: 0 | J154: =ROUNDDOWN(E154*H154,4) -> 0
D155: Custo unitário total de tempo fixo | J155: =SUM(J153:J154) -> 0
B156: F - MOMENTO DE TRANSPORTE | D156: Quantidade | E156: Unidade | F156: DMT | J156: Custo Unitário
F157: LN | G157: RP | H157: P
B158: - | C158: 0 | D158: 0 | E158: tkm
B159: - | C159: 0 | D159: 0 | E159: tkm
D160: Custo unitário total de transporte
F161: Custo unitário direto total | J161: =TRUNC(J151+J155,2) -> 351.42
B162: Obs.
A164: =A123+1 -> 5 | B164: 1ª/GRD | K164: =J200 -> 0.56
B165: OBRA: | C165: PAVIMENTAÇÃO ASFÁLTICA EM CBUQ - ESTRADA PARA SANTANA DO MUNDO NOVO (JURAMENTO / MG)
B166: Custo Unitário de Referência | E166: Minas Gerais
E167: Janeiro/2025 | H167: Produção da equipe | I167: 622.95 | J167: =VLOOKUP(A164,ORÇAMENTO!$A$10:$L$59,7,1) -> M2
B168: 5502985 | C168: LIMPEZA MECANIZADA DE CAMADA VEGETAL | I168: Valores em reais (R$)
B169: A - EQUIPAMENTOS | D169: Quantidade | E169: Utilização | G169: Custo Horário | J169: Custo
E170: Operativa | F170: Improdutiva | G170: Produtivo | H170: Improdutivo | J170: Horário Total
B171: E9540 | C171: Trator sobre esteiras com lâmina - 127 kW | D171: 1 | E171: 1 | F171: 0 | G171: 323.2633 | H171: 130.7561 | J171: =D171*(E171*G171+F171*H171) -> 323.2633
B172: - | C172: 0 | G172: 0 | H172: 0 | J172: =D172*(E172*G172+F172*H172) -> 0
H173: Custo horário total de equipamentos | J173: =SUM(J171:J172) -> 323.2633
B174: B - MÃO DE OBRA | D174: Quantidade | E174: Unidade | G174: Custo Horário | H174: Custo Horário Total
B175: P9824 | C175: Servente | D175: 1 | E175: h | G175: 21.3355 | J175: =D175*G175 -> 21.3355
B176: - | C176: 0 | D176: 0 | E176: 0 | G176: 0 | J176: =D176*G176 -> 0
D177: Custo horário total de mão de obra | J177: =SUM(J175:J176) -> 21.3355
D178: Custo horário total de execução | J178: =J173+J177 -> 344.5988
D179: Custo unitário de execução | J179: =J178/I167 -> 0.5531724858
H180: Custo do FIC | J180: 0.0113
H181: Custo do FIT | J181: 0
B182: C - MATERIAL | D182: Quantidade | E182: Unidade | G182: Preço Unitário | H182: Custo Unitário
B183: - | C183: 0 | E183: 0 | G183: 0 | J183: =D183*G183 -> 0
B184: - | C184: 0 | E184: 0 | G184: 0 | J184: =D184*G184 -> 0
D185: Custo unitário total de material | J185: =SUM(J183:J184) -> 0
B186: D - ATIVIDADES AUXILIARES | D186: Quantidade | E186: Unidade | G186: Custo Unitário | H186: Custo Unitário
B187: - | C187: 0 | D187: 0 | E187: 0 | G187: 0 | J187: =D187*G187 -> 0
B188: - | C188: 0 | D188: 0 | E188: 0 | G188: 0 | J188: =D188*G188 -> 0
D189: Custo total de atividades auxiliares | J189: =SUM(J187:J188) -> 0
H190: Subtotal | J190: =J179+J185+J189+J180+J181 -> 0.5644724858
B191: E - TEMPO FIXO | D191: Código | E191: Quantidade | F191: Unidade | H191: Custo Unitário | I191: Custo Unitário
B192: - | C192: 0 | D192: - | E192: 0 | F192: t | H192: 0 | J192: =ROUNDDOWN(E192*H192,4) -> 0
B193: - | C193: 0 | D193: - | E193: 0 | F193: t | H193: 0 | J193: =ROUNDDOWN(E193*H193,4) -> 0
D194: Custo unitário total de tempo fixo | J194: =SUM(J192:J193) -> 0
B195: F - MOMENTO DE TRANSPORTE | D195: Quantidade | E195: Unidade | F195: DMT | J195: Custo Unitário
F196: LN | G196: RP | H196: P
B197: - | C197: 0
B198: - | C198: 0
D199: Custo unitário total de transporte
F200: Custo unitário direto total | J200: =TRUNC(J190+J194,2) -> 0.56
B201: Obs.
A203: =A164+1 -> 6 | B203: 1ª/GRD | K203: =J241 -> 0.39
B204: OBRA: | C204: PAVIMENTAÇÃO ASFÁLTICA EM CBUQ - ESTRADA PARA SANTANA DO MUNDO NOVO (JURAMENTO / MG)
B205: Custo Unitário de Referência | E205: Minas Gerais
... 1360 more rows

Sheet CPU-FORNEC
A1: 1 | B1: CODEVASF | E1: COMPOSIÇÃO DE PREÇO UNITÁRIO | I1: =H24 -> 0 | J1: =H26 -> 0 | K1: BDI CALCULADO: | M1: =ORÇAMENTO!L5 -> 22.26
B2: OBRA: | C2: PAVIMENTAÇÃO ASFÁLTICA EM CBUQ - ESTRADA PARA SANTANA DO MUNDO NOVO (JURAMENTO / MG) | G2: DATA: | H2: =ORÇAMENTO!C6 -> ABRIL / 2025 | K2: BDI DIFERENCIADO: | M2: ='BDI FORN'!D31/100 -> 0.15
B3: SERVIÇO: | C3: CPU.1 | E3: Referência: | F3: CODEVASF | G3: UNIDADE: | H3: =VLOOKUP(A1,ORÇAMENTO!A11:L30,5) -> MOBILIZAÇÃO E DESMOBILIZAÇÃO
B5: TIPO ITEM | C5: CODIGO ITEM | D5: DESCRIÇÃO ITEM | E5: UNIDADE ITEM | F5: COEFICIENTE | G5: PRECO UNITARIO | H5: CUSTO TOTAL | J5: distancia = | K5: 90 | L5: B.DESPACHO
B6: EQUIPAMENTOS | J6: Pá carregadeira | M6: 10.1 | N6: ton
C7: E9001 | D7: E9001 | E7: E9001 | G7: E9001
B10: MÃO DE OBRA
B14: MATERIAIS
H17: =ROUNDDOWN(F17*G17,2) -> 0 | J17: Motoniveladora | M17: 12.47 | N17: ton
B18: ATIVIDADES AUXILIARES | J18: Trator de pneus | M18: 2.8 | N18: ton
H19: =ROUNDDOWN(F19*G19,2) -> 0
H20: 0
H21: 0
H22: =ROUNDDOWN(F22*G22,2) -> 0 | J22: Rolo Compactador | M22: 15.33 | N22: ton
B23: PRODUÇÃO DA EQUIPE | E23: 1 | F23: CUSTO | H23: =SUM(H6:H22) -> 0 | J23: Grade de disco | M23: 1 | N23: ton
B24: TOTAL | H24: =H23/E23 -> 0 | I24: OK | J24: RETROESCAVADEIRA | M24: 6.67 | N24: ton
B25: BDI % | H25: =1+$M$1 -> 23.26
B26: TOTAL DO SERVIÇO - R$ | H26: =ROUND(H24*H25,2) -> 0
A28: F1 | B28: CODEVASF | E28: COMPOSIÇÃO DE PREÇO UNITÁRIO | I28: =H35 -> 3532.13 | J28: =H37 -> 4061.95
B29: OBRA: | C29: PAVIMENTAÇÃO ASFÁLTICA EM CBUQ - ESTRADA PARA SANTANA DO MUNDO NOVO (JURAMENTO / MG) | G29: DATA: | H29: =$H$2 -> ABRIL / 2025
B30: SERVIÇO: | C30: AQUISIÇÃO DE EMULSÃO ASFÁLTICA PARA IMPRIMAÇÃO (EAI) - EXCLUSIVE TRANSPORTE | E30: FONTE | F30: CPU.7 | G30: UNIDADE: | H30: =VLOOKUP(A28,ORÇAMENTO!$A$11:$L$66,7) -> T
B32: TIPO ITEM | C32: CODIGO ITEM | D32: DESCRIÇÃO ITEM | E32: UNIDADE ITEM | F32: COEFICIENTE | G32: PRECO UNITARIO | H32: CUSTO TOTAL
B33: INSUMO | C33: ANP | D33: EMULSÃO ASFÁLTICA PARA SERVIÇO DE IMPRIMAÇÃO (MEMÓRIA EM ANEXO) | E33: T | F33: 1 | G33: 3532.13706 | H33: =ROUNDDOWN(F33*G33,2) -> 3532.13
B34: PRODUÇÃO DA EQUIPE | E34: 1 | F34: CUSTO | H34: =SUM(H33:H33) -> 3532.13
B35: TOTAL | H35: =H34/E34 -> 3532.13
B36: BDI % | H36: =1+$M$2 -> 1.15
B37: TOTAL DO SERVIÇO - R$ | H37: =ROUND(H35*H36,2) -> 4061.95 | I37: OK
A39: F2 | B39: CODEVASF | E39: COMPOSIÇÃO DE PREÇO UNITÁRIO | I39: =H46 -> 401.49 | J39: =H48 -> 461.71
B40: OBRA: | C40: PAVIMENTAÇÃO ASFÁLTICA EM CBUQ - ESTRADA PARA SANTANA DO MUNDO NOVO (JURAMENTO / MG) | G40: DATA: | H40: =$H$2 -> ABRIL / 2025
B41: SERVIÇO: | C41: TRANSPORTE DE EMULSÃO ASFÁLTICA PARA IMPRIMAÇÃO (EAI) | E41: FONTE | F41: CPU.8 | G41: UNIDADE: | H41: =VLOOKUP(A39,ORÇAMENTO!$A$11:$L$66,7) -> T
B43: TIPO ITEM | C43: CODIGO ITEM | D43: DESCRIÇÃO ITEM | E43: UNIDADE ITEM | F43: COEFICIENTE | G43: PRECO UNITARIO | H43: CUSTO TOTAL
B44: INSUMO | C44: - | D44: TRANSPORTE DE EMULSÃO ASFÁLTICA PARA IMPRIMAÇÃO (EAI), INCLUINDO CUSTO TOTAL DO TRANSPORTE (COMBUSTÍVEL, PEDÁGIOS, ETC.) E ICMS - MEMÓRIA ANEXA | E44: T | F44: 1 | G44: 401.495 | H44: =ROUNDDOWN(F44*G44,2) -> 401.49
B45: PRODUÇÃO DA EQUIPE | E45: 1 | F45: CUSTO | H45: =SUM(H44:H44) -> 401.49
B46: TOTAL | H46: =H45/E45 -> 401.49
B47: BDI % | H47: =1+$M$2 -> 1.15
B48: TOTAL DO SERVIÇO - R$ | H48: =ROUND(H46*H47,2) -> 461.71 | I48: OK
A50: F3 | B50: CODEVASF | E50: COMPOSIÇÃO DE PREÇO UNITÁRIO | I50: =H57 -> 3480.79 | J50: =H59 -> 4002.91
B51: OBRA: | C51: PAVIMENTAÇÃO ASFÁLTICA EM CBUQ - ESTRADA PARA SANTANA DO MUNDO NOVO (JURAMENTO / MG) | G51: DATA: | H51: =$H$2 -> ABRIL / 2025
B52: SERVIÇO: | C52: AQUISIÇÃO DE EMULSAO ASFALTICA CATIONICA RR-1C - EXCLUSIVE TRANSPORTE | E52: FONTE | F52: CPU.9 | G52: UNIDADE: | H52: =VLOOKUP(A50,ORÇAMENTO!$A$11:$L$66,7) -> T
B54: TIPO ITEM | C54: CODIGO ITEM | D54: DESCRIÇÃO ITEM | E54: UNIDADE ITEM | F54: COEFICIENTE | G54: PRECO UNITARIO | H54: CUSTO TOTAL
B55: INSUMO | C55: ANP | D55: EMULSÃO ASFÁLTICA CATIÔNICA RR-1C(MEMÓRIA EM ANEXO) | E55: T | F55: 1 | G55: 3480.792613 | H55: =ROUNDDOWN(F55*G55,2) -> 3480.79
B56: PRODUÇÃO DA EQUIPE | E56: 1 | F56: CUSTO | H56: =SUM(H55:H55) -> 3480.79
B57: TOTAL | H57: =H56/E56 -> 3480.79 | I57: OK
B58: BDI % | H58: =1+$M$2 -> 1.15
B59: TOTAL DO SERVIÇO - R$ | H59: =ROUND(H57*H58,2) -> 4002.91
A61: F4 | B61: CODEVASF | E61: COMPOSIÇÃO DE PREÇO UNITÁRIO | I61: =H68 -> 496.62 | J61: =H70 -> 571.11
B62: OBRA: | C62: PAVIMENTAÇÃO ASFÁLTICA EM CBUQ - ESTRADA PARA SANTANA DO MUNDO NOVO (JURAMENTO / MG) | G62: DATA: | H62: =$H$2 -> ABRIL / 2025
B63: SERVIÇO: | C63: TRANSPORTE DE EMULSÃO ASFÁLTICA CATIONICA RR-1C | E63: FONTE | F63: CPU.10 | G63: UNIDADE: | H63: =VLOOKUP(A61,ORÇAMENTO!$A$11:$L$66,7) -> T
B65: TIPO ITEM | C65: CODIGO ITEM | D65: DESCRIÇÃO ITEM | E65: UNIDADE ITEM | F65: COEFICIENTE | G65: PRECO UNITARIO | H65: CUSTO TOTAL
B66: INSUMO | C66: - | D66: TRANSPORTE DE EMULSÃO ASFÁLTICA CATIONICA TIPO RR-1C, INCLUINDO CUSTO TOTAL DO TRANSPORTE (COMBUSTÍVEL, PEDÁGIOS, ETC.) E ICMS - MEMÓRIA ANEXA | E66: T | F66: 1 | G66: 496.6204505 | H66: =ROUNDDOWN(F66*G66,2) -> 496.62
B67: PRODUÇÃO DA EQUIPE | E67: 1 | F67: CUSTO | H67: =SUM(H66:H66) -> 496.62
B68: TOTAL | H68: =H67/E67 -> 496.62 | I68: OK
B69: BDI % | H69: =1+$M$2 -> 1.15
B70: TOTAL DO SERVIÇO - R$ | H70: =ROUND(H68*H69,2) -> 571.11
A72: F5 | B72: CODEVASF | E72: COMPOSIÇÃO DE PREÇO UNITÁRIO | I72: =H79 -> 4815.2 | J72: =H81 -> 5537.48
B73: OBRA: | C73: PAVIMENTAÇÃO ASFÁLTICA EM CBUQ - ESTRADA PARA SANTANA DO MUNDO NOVO (JURAMENTO / MG) | G73: DATA: | H73: =$H$2 -> ABRIL / 2025
B74: SERVIÇO: | C74: AQUISIÇÃO DE CONCRETO ASFÁLTICO DE PETRÓLEO - CAP 50/70 - EXCLUSIVE TRANSPORTE | E74: FONTE | F74: CPU.11 | G74: UNIDADE: | H74: =VLOOKUP(A72,ORÇAMENTO!$A$11:$L$66,7) -> T
B76: TIPO ITEM | C76: CODIGO ITEM | D76: DESCRIÇÃO ITEM | E76: UNIDADE ITEM | F76: COEFICIENTE | G76: PRECO UNITARIO | H76: CUSTO TOTAL
B77: INSUMO | C77: 1518 | D77: CIMENTOS ASFÁLTICO DE PETRÓLEO TIPO CAP 50/70 (MEMÓRIA EM ANEXO) | E77: T | F77: 1 | G77: 4815.205131 | H77: =ROUNDDOWN(F77*G77,2) -> 4815.2
B78: PRODUÇÃO DA EQUIPE | E78: 1 | F78: CUSTO | H78: =SUM(H77:H77) -> 4815.2
B79: TOTAL | H79: =H78/E78 -> 4815.2
B80: BDI % | H80: =1+$M$2 -> 1.15
B81: TOTAL DO SERVIÇO - R$ | H81: =ROUND(H79*H80,2) -> 5537.48
A83: F6 | B83: CODEVASF | E83: COMPOSIÇÃO DE PREÇO UNITÁRIO | I83: =H90 -> 388.69 | J83: =H92 -> 446.99
B84: OBRA: | C84: PAVIMENTAÇÃO ASFÁLTICA EM CBUQ - ESTRADA PARA SANTANA DO MUNDO NOVO (JURAMENTO / MG) | G84: DATA: | H84: =$H$2 -> ABRIL / 2025
B85: SERVIÇO: | C85: TRANSPORTE DE CONCRETO ASFÁLTICO DE PETRÓLEO - CAP 50/70 | E85: FONTE | F85: CPU.12 | G85: UNIDADE: | H85: =VLOOKUP(A83,ORÇAMENTO!$A$11:$L$66,7) -> T
B87: TIPO ITEM | C87: CODIGO ITEM | D87: DESCRIÇÃO ITEM | E87: UNIDADE ITEM | F87: COEFICIENTE | G87: PRECO UNITARIO | H87: CUSTO TOTAL
B88: INSUMO | C88: - | D88: TRANSPORTE DE CIMENTO ASFÁLTICO DE PETRÓLEO TIPO CAP 50-70, INCLUINDO CUSTO TOTAL DO TRANSPORTE (COMBUSTÍVEL, PEDÁGIOS, ETC.) E ICMS - MEMÓRIA ANEXA | E88: T | F88: 1 | G88: 388.6957143 | H88: =ROUNDDOWN(F88*G88,2) -> 388.69
B89: PRODUÇÃO DA EQUIPE | E89: 1 | F89: CUSTO | H89: =SUM(H88:H88) -> 388.69
B90: TOTAL | H90: =H89/E89 -> 388.69
B91: BDI % | H91: =1+$M$2 -> 1.15
B92: TOTAL DO SERVIÇO - R$ | H92: =ROUND(H90*H91,2) -> 446.99

Sheet BDI SERV
B1: DETALHAMENTO DO BDI - SERVIÇOS
B4: Item | C4: Descrição dos Serviços | D4: % - PV | E4: % - CD
B6: 1 | C6: ADMINISTRAÇÃO CENTRAL | E6: =SUM(E7:E9) -> 4.01
B7: 1.1 | C7: ESCRITÓRIO CENTRAL | E7: 4.01
B8: 1.2 | C8: VIAGENS
B9: 1.3 | C9: OUTROS
B11: 2 | C11: IMPOSTOS E TAXAS | D11: =SUM(D12:D15) -> 6.85 | E11: =SUM(E12:E15) -> 0
B12: 2.1 | C12: ISS - Proposta | D12: =D34*100 -> 3.2
B13: 2.2 | C13: PIS | D13: 0.65
B14: 2.3 | C14: Cofins | D14: 3
B15: 2.4 | C15: Contribuição Previdenciaria (CPRB)
B17: 3 | C17: TAXA DE RISCO | E17: =SUM(E18:E20) -> 0.96
B18: 3.1 | C18: SEGURO | E18: 0.2
B19: 3.2 | C19: RISCO | E19: 0.56
B20: 3.3 | C20: GARANTIA | E20: 0.2
B22: 4 | C22: DESPESAS FINANCEIRAS | E22: 1.11
B24: 5 | C24: LUCRO | E24: 7.3
B26: BDI APRESENTADO: | E26: =IF($D$41=$C$43,$D$43,IF($D$41=$C$44,$D$44,IF($D$41=$C$44,$D$44,IF($D$41=$C$45,$D$45,0)))) -> 22.26
C28: Legislação Municipal: | D28: Lei Municipal nº 1.679/2023
C29: Município: | D29: Juramento
C30: Alíquota ISSQN: | D30: 0.04 | E30: Município
C31: Base de Cálculo: | D31: 0.8
C32: Valor Serviço: | D32: =ORÇAMENTO!Q3 -> 0
C33: Dedução - Material: | D33: 0
C34: ISSQN BDI: | D34: =IF(D32="",0,ROUND(IF(D31=D49,((1-(D33/D32))*D30),D30*D31),4)) -> 0.032 | E34: (*)
A36: Acórdão nº 2.622/2013 - TCU Plenário
A37: BDI = ARRED((((((1+(AC+TR)/100)*(1+DF/100)*(1+L/100))/(1-IMP/100))-1)*100);2)
B39: (*) É obrigação da licitante a verificação da Legislação Tributária vigente no município, bem como o cálculo dos valores totais de serviços e materiais estimados, para apresentação de sua proposta.
C41: Forma de Cálculo do BDI: | D41: BDI - Acórdão nº 2.622/2013 - TCU
C43: BDI - Digitado | D43: =ROUND(E6+E11+E17+E22+E24,2) -> 13.38
C44: BDI - Calculado | D44: =ROUND((((1+(E6/100+E22/100+E17/100))/(1-(D11/100+E24/100)))-1)*100,2) -> 23.56
C45: BDI - Acórdão nº 2.622/2013 - TCU | D45: =ROUND((((((1+(E6+E17)/100)*(1+E22/100)*(1+E24/100))/(1-D11/100))-1)*100),2) -> 22.26
D49: Dedução - Material | E49: Município
D50: 0.1 | E50: Simples Nacional
D51: 0.2 | E51: Municípios Indefinidos
D52: 0.3
D53: 0.4
D54: 0.5
D55: 0.6
D56: 0.7
D57: 0.8
D58: 0.9
D59: 1
D60: =E31 -> 0

Sheet BDI FORN
B1: DETALHAMENTO DO BDI - FORNECIMENTO (MATERIAL ASFÁLTICO)
B4: Item | C4: Descrição dos Serviços | D4: % | E4: %
D5: PV | E5: CD
B7: 1 | C7: ADMINISTRAÇÃO CENTRAL | E7: 3.45
B8: 1.1 | C8: ESCRITÓRIO CENTRAL
B9: 1.2 | C9: VIAGENS
B10: 1.3 | C10: OUTROS
B12: 2 | C12: IMPOSTOS E TAXAS | D12: =SUM(D13:D16) -> 3.65 | E12: =SUM(E13:E16) -> 4.56
B13: 2.1 | C13: ISS (*) | E13: =ROUND(D13*1.2515,2) -> 0
B14: 2.2 | C14: PIS | D14: 0.65 | E14: =ROUND(D14*1.2515,2) -> 0.81
B15: 2.3 | C15: Cofins | D15: 3 | E15: =ROUND(D15*1.2515,2) -> 3.75
B16: 2.4 | C16: CONTRIBUIÇÃO PREVIDENCIÁRIA SOBRE A RENDA BRUTA | D16: 0 | E16: =ROUND(D16*1.2515,2) -> 0
B18: 3 | C18: TAXA DE RISCO | E18: =SUM(E19:E22) -> 1.08
B19: 3.1 | C19: SEGURO | E19: 0.24
B20: 3.2 | C20: RISCO | E20: 0.6
B21: 3.3 | C21: GARANTIA | E21: 0.24
B23: 4 | C23: DESPESAS FINANCEIRAS | E23: 0.85
B25: 5 | C25: LUCRO | E25: 5.11
C27: BDI - CALCULADO | E27: =ROUND((((1+(E7+E18)/100)*(1+E23/100)*(1+E25/100)/(1-D12/100)-1)*100),2) -> 15
A29: BDI = ((1+((AC+S+R+G)/100))x(1+DF/100)x(1+L/100)/(1-I/100)-1)*100
B31: BDI (CALCULADO): | D31: =ROUND((((1+((E7+E18)/100))*(1+E23/100)*(1+E25/100))/(1-D12/100)-1)*100,2) -> 15 | E31: %
A37: BDI EM CONFORMIDADE COM OS ACÓRDÃOS Nº 2369/2011 e ACÓRDÃO Nº 2.622/2013 - TCU - PLENÁRIO

Sheet CRONOGRAMA
B1: CRONOGRAMA FÍSICO-FINANCEIRO
B2: OBRA: | C2: =ORÇAMENTO!C5 -> PAVIMENTAÇÃO ASFÁLTICA EM CBUQ - ESTRADA PARA SANTANA DO MUNDO NOVO (JURAMENTO / MG) | F2: VALOR: | G2: =ORÇAMENTO!L59 -> 1999806.5
F3: PRAZO: | G3: 150 DIAS
B5: ITEM | C5: ETAPAS/DESCRIÇAO | D5: FISICO/ FINANCEIRO | E5: TOTAL ETAPAS | F5: MÊS 1 | G5: MÊS 2 | H5: MÊS 3 | I5: MÊS 4 | J5: MÊS 5 | K5: TOTAL
A6: A | B6: =VLOOKUP(A6,ORÇAMENTO!$A$10:$L$59,2) -> 1 | C6: =VLOOKUP(A6,ORÇAMENTO!$A$10:$L$59,5) -> SERVIÇOS PRELIMINARES | D6: FISICO | E6: =ROUND(E7/$G$2,4) -> 0.0808 | F6: 0.25 | G6: 0.2 | H6: 0.2 | I6: 0.2 | J6: 0.15 | K6: =SUM(F6:J6) -> 1
D7: FINANCEIRO | E7: =ORÇAMENTO!L10 -> 161676.58 | F7: =ROUND($E$7*F6,2) -> 40419.15 | G7: =ROUND($E$7*G6,2) -> 32335.32 | H7: =ROUND($E$7*H6,2) -> 32335.32 | I7: =ROUND($E$7*I6,2) -> 32335.32 | J7: 24251.49 | K7: =SUM(F7:J7) -> 161676.6
A8: B | B8: =VLOOKUP(A8,ORÇAMENTO!$A$10:$L$59,2) -> 2 | C8: =VLOOKUP(A8,ORÇAMENTO!$A$10:$L$59,5) -> TERRAPLANAGEM E PAVIMENTAÇÃO | D8: FISICO | E8: =ROUND(E9/$G$2,4) -> 0.345 | F8: 0.2 | G8: 0.2 | H8: 0.2 | I8: 0.2 | J8: 0.2 | K8: =SUM(F8:J8) -> 1
D9: FINANCEIRO | E9: =ORÇAMENTO!L17 -> 689846.4 | F9: =ROUND($E$9*F8,2) -> 137969.28 | G9: =ROUND($E$9*G8,2) -> 137969.28 | H9: =ROUND($E$9*H8,2) -> 137969.28 | I9: =ROUND($E$9*I8,2) -> 137969.28 | J9: 137969.28 | K9: =SUM(F9:J9) -> 689846.4
A10: C | B10: =VLOOKUP(A10,ORÇAMENTO!$A$10:$L$59,2) -> 3 | C10: =VLOOKUP(A10,ORÇAMENTO!$A$10:$L$59,5) -> TRANSPORTE DE MATERIAIS | D10: FISICO | E10: =ROUND(E11/$G$2,4) -> 0.0742 | F10: 0.25 | G10: 0.25 | H10: 0.25 | I10: 0.25 | K10: =SUM(F10:J10) -> 1
D11: FINANCEIRO | E11: =ORÇAMENTO!L24 -> 148374.4 | F11: =ROUND($E$11*F10,2) -> 37093.6 | G11: =ROUND($E$11*G10,2) -> 37093.6 | H11: =ROUND($E$11*H10,2) -> 37093.6 | I11: =ROUND($E$11*I10,2) -> 37093.6 | J11: 0 | K11: =SUM(F11:J11)-0.04 -> 148374.36
A12: E | B12: =VLOOKUP(A12,ORÇAMENTO!$A$10:$L$59,2) -> 4 | C12: =VLOOKUP(A12,ORÇAMENTO!$A$10:$L$59,5) -> DRENAGEM E OBRAS COMPLEMENTARES | D12: FISICO | E12: =ROUND(E13/$G$2,4) -> 0.2429 | F12: 0.2 | G12: 0.2 | H12: 0.2 | I12: 0.2 | J12: 0.2 | K12: =SUM(F12:J12) -> 1
D13: FINANCEIRO | E13: =ORÇAMENTO!L29 -> 485770.65 | F13: =ROUND($E$13*F12,2) -> 97154.13 | G13: =ROUND($E$13*G12,2) -> 97154.13 | H13: =ROUND($E$13*H12,2) -> 97154.13 | I13: =ROUND($E$13*I12,2) -> 97154.13 | J13: =ROUND($E$13*J12,2) -> 97154.13 | K13: =SUM(F13:J13)-0.02 -> 485770.63
A14: F | B14: =VLOOKUP(A14,ORÇAMENTO!$A$10:$L$59,2) -> 5 | C14: =VLOOKUP(A14,ORÇAMENTO!$A$10:$L$59,5) -> FORNECIMENTOS - MATERIAL ASFÁLTICO (BDI DIFERENCIADO) | D14: FISICO | E14: =ROUND(E15/$G$2,4) -> 0.2571 | F14: 0.1 | G14: 0.2 | H14: 0.3 | I14: 0.2 | J14: 0.2 | K14: =SUM(F14:J14) -> 1
D15: FINANCEIRO | E15: =ORÇAMENTO!L52 -> 514138.47 | F15: =ROUND($E$15*F14,2) -> 51413.85 | G15: =ROUND($E$15*G14,2) -> 102827.69 | H15: =ROUND($E$15*H14,2) -> 154241.54 | I15: =ROUND($E$15*I14,2) -> 102827.69 | J15: =ROUND($E$15*J14,2) -> 102827.69 | K15: =SUM(F15:J15)-0.02 -> 514138.44
B16: TOTAL | D16: FISICO | E16: =SUM(F16:J16) -> 1.000000005 | F16: =F17/$E$17 -> 0.1820426176 | G16: =G17/$E$17 -> 0.2037097189 | H16: =H17/$E$17 -> 0.2294191313 | I16: =I17/$E$17 -> 0.2037097189 | J16: =J17/$E$17 -> 0.1811188182 | K16: =SUM(F16:J16) -> 1.000000005
D17: FINANCEIRO | E17: =E11+E9+E7+E15+E13 -> 1999806.5 | F17: =F11+F9+F7+F15+F13 -> 364050.01 | G17: 407380.02 | H17: 458793.87 | I17: 407380.02 | J17: 362202.59 | K17: =SUM(F17:J17)-0.01 -> 1999806.5
B19: OBSERVAÇÕES:

Sheet EAI
C2: MEMÓRIA DE CÁLCULO
G6: TIPOLOGIA DO MATERIAL | I6: EMULSÃO ASFÁLTICA PARA SERVIÇO DE IMPRIMAÇÃO | M6: IMPOSTOS | N6: COFINS | O6: 0.0065 | P6: 0.0065
G7: ÍNDICE DE PAVIMENTAÇÃO DNIT | H7: 2014-07-01 | I7: ÍNDICE INICIAL | J7: 270.237 | N7: PIS | O7: 0.03 | P7: 0.03 | T7: LEGENDA | AC7: As empresas tributadas pelo Lucro Presumido pagam 0,65% de PIS e 3% de COFINS
H8: =H9 -> 2025-02-01 | I8: ÍNDICE FINAL | J8: 587.959 | N8: ICMS | O8: 0.18 | P8: 0.18 | Q8: =1-(O8/1) -> 0.82 | R8: =1-(P8/1) -> 0.82 | S8: =1-(Q8/1) -> 0.18 | T8: ENTRADA DE DADOS | V8: QUANT.ESTIMADA DE EMULSÃO ASFÁLTICA PARA IMPRIMAÇÃO (TON.): | Z8: =ORÇAMENTO!H53 -> 16 | AA8: TONELADAS | AC8: As empresas tributadas pelo Lucro Real pagam 1,65% de PIS e 7,60% de COFINS
G9: Data ANP | H9: 2025-02-01
C11: DATA-BASE | D11: PRODUTOS | E11: LOCALIDADES | J11: CUSTO ANP (R$/Kg) | L11: CUSTO ANP | M11: IMPOSTOS DO PRODUTO | N11: CUSTO DO PRODUTO COM IMPOSTOS | O11: DMT's | P11: DMT's FLUVIAL | Q11: CUSTO DO TRANSPORTE RODOVIA PAVIMENTADA | R11: CUSTO DO TRANSPORTE FLUVIAL | S11: CUSTO DO TRANSPORTE TOTAL | T11: ICMS | U11: ATUALIZAÇÃO DO CUSTO DE TRANSPORTE | V11: CUSTO DO TRANSPORTE RODOVIA PAVIMENTADA COM IMPOSTOS E ATUALIZAÇÃO MONETÁRIA | W11: PEDÁGIO | Y11: TOTAL TRANSPORTE | Z11: AQUISIÇÃO DO PRODUTO | AA11: TOTAL GERAL ( TRANSP + AQUISIÇÃO) | AC11: 1 | AD11: 2 | AE11: 3
C12: =H8 -> 2025-02-01 | E12: REFINARIAS | F12: ENDEREÇO | G12: ESTADO | H12: CIDADE | I12: DESTINO | J12: ESTADO | K12: REGIÃO | L12: R$/t | M12: R$/t | N12: R$/t | O12: KM | P12: KM | Q12: R$/t | R12: R$/t | S12: R$/t | T12: R$/t | U12: R$/t | V12: R$/t | W12: CUSTO | X12: R$/t | Y12: R$/t | Z12: R$/t | AA12: R$/t | AC12: TOTAL GERAL ( TRANSP + AQUISIÇÃO) | AD12: TOTAL TRANSPORTE | AE12: AQUISIÇÃO DO PRODUTO
B13: =AA13 -> 4657.481795 | C13: 1 | D13: =I6 -> EMULSÃO ASFÁLTICA PARA SERVIÇO DE IMPRIMAÇÃO | E13: Refinaria Abreu e Lima | F13: Rodovia PE 60, Km 10 - Ipojuca - PE CEP:55590-000 | G13: Pernambuco | H13: IPOJUCA - PE | I13: Montes Claros - MG | J13: - | K13: 2.710401795 | L13: =IF(AND(J13="-",K13="-"),"",IF(AND(J13<>0,K13="-"),J13*1000,IF(AND(J13="-",K13<>0),K13*1000,IF(AND(J13<>0,K13<>0),J13*1000,"")))) -> 2710.401795 | M13: =ROUND(((L13/(1-$O$6-$O$7-$O$8))-L13),2) -> 748.95 | N13: =L13+M13 -> 3459.351795 | O13: 1631 | Q13: =ROUND((26.939+0.253*O13),2) -> 439.58 | S13: =Q13+R13 -> 439.58 | T13: =TRUNC(S13*($O$8/(1-$O$8)),2) -> 96.49 | U13: =TRUNC(IF($J$7="","",(($J$8-$J$7)/$J$7)*(S13+T13)),2) -> 630.26 | V13: =S13+T13+U13 -> 1166.33 | W13: 254.4 | X13: =EVEN($Z$8*2/28)*W13/$Z$8 -> 31.8 | Y13: =IF(AND(S13="",T13=""),"",V13+X13) -> 1198.13 | Z13: =IF(OR(L13="",M13=""),"",L13+M13) -> 3459.351795 | AA13: =IF(OR(Y13="",Z13=""),"",Y13+Z13) -> 4657.481795 | AC13: =AA13 -> 4657.481795 | AD13: =Y13 -> 1198.13 | AE13: =Z13 -> 3459.351795 | AH13: =IF(OR(G13=$D$50,G13=$D$51,G13=$D$53,G13=$D$59,G13=$D$43,G13=$D$39,G13=$D$35,G13=$D$48,G13=$D$38),"NORDESTE",IF(OR(G13=$D$34,G13=$D$36,G13=$D$37,G13=$D$47,G13=$D$55,G13=$D$56,G13=$D$60),"NORTE",IF(OR(G13=$D$40,G13=$D$42,G13=$D$44,G13=$D$45),"CENTRO-OESTE",IF(OR(G13=$D$58,G13=$D$52,G13=$D$46,G13=$D$41),"SUDESTE",IF(OR(G13=$D$57,G13=$D$49,G13=$D$54),"SUL",""))))) -> NORDESTE
B14: =AA14 -> 4844.586795 | C14: 2 | E14: Refinaria Potiguar Clara Camarão | F14: Rodovia RN 221, KM 25 - Guamaré - RN CEP:59598-000 | G14: Rio Grande do Norte | H14: GUAMARÉ - RN | I14: =I13 -> Montes Claros - MG | J14: - | K14: 2.710401795 | L14: =IF(AND(J14="-",K14=""),"",IF(AND(J14<>0,K14=""),J14*1000,IF(AND(J14="-",K14<>0),K14*1000,IF(AND(J14<>0,K14<>0),J14*1000,"")))) -> 2710.401795 | M14: =ROUND(((L14/(1-$O$6-$O$7-$O$8))-L14),2) -> 748.95 | N14: =L14+M14 -> 3459.351795 | O14: 1923 | Q14: =ROUND((26.939+0.253*O14),2) -> 513.46 | S14: =Q14+R14 -> 513.46 | T14: =TRUNC(S14*($O$8/(1-$O$8)),2) -> 112.71 | U14: =TRUNC(IF($J$7="","",(($J$8-$J$7)/$J$7)*(S14+T14)),2) -> 736.19 | V14: =S14+T14+U14 -> 1362.36 | W14: 183 | X14: =EVEN($Z$8*2/28)*W14/$Z$8 -> 22.875 | Y14: =IF(AND(S14="",T14=""),"",V14+X14) -> 1385.235 | Z14: 3459.351795 | AA14: =IF(OR(Y14="",Z14=""),"",Y14+Z14) -> 4844.586795 | AC14: =AA14 -> 4844.586795 | AD14: =Y14 -> 1385.235 | AE14: 3459.351795 | AH14: NORDESTE
B15: 4194.691795 | C15: 3 | E15: Refinaria Landulpho Alves (RLAM) | F15: Rodovia BA 523, KM 4 – Mataripe São Francisco do Conde - BA CEP:43900-000 | G15: Bahia | H15: SÃO FRANCISCO DO CONDE - BA | I15: =I14 -> Montes Claros - MG | J15: - | K15: 2.710401795 | L15: 2710.401795 | M15: =ROUND(((L15/(1-$O$6-$O$7-$O$8))-L15),2) -> 748.95 | N15: 3459.351795 | O15: 951 | Q15: =ROUND((26.939+0.253*O15),2) -> 267.54 | S15: 267.54 | T15: 58.72 | U15: 383.58 | V15: 709.84 | W15: 204 | X15: 25.5 | Y15: 735.34 | Z15: 3459.351795 | AA15: 4194.691795 | AC15: 4194.691795 | AD15: 735.34 | AE15: 3459.351795 | AH15: NORDESTE
A16: 2403 | B16: 4606.122653 | C16: 4 | E16: Refinaria Lubrificantes e Derivados do Nordeste (Lubnor) | F16: Av. Leite Barbosa, s/nº - Mucuripe Fortaleza - Ceará CEP:60180-420 | G16: Ceará | H16: FORTALEZA - CE | I16: Montes Claros - MG | J16: 2.501487653 | K16: 2.710401795 | L16: =IF(AND(J16="-",K16=""),"",IF(AND(J16<>0,K16=""),J16*1000,IF(AND(J16="-",K16<>0),K16*1000,IF(AND(J16<>0,K16<>0),J16*1000,"")))) -> 2501.487653 | M16: =ROUND(((L16/(1-$O$6-$O$7-$O$8))-L16),2) -> 691.22 | N16: 3192.707653 | O16: 1965 | Q16: 524.08 | S16: 524.08 | T16: 115.04 | U16: 751.42 | V16: 1390.54 | W16: 183 | X16: 22.875 | Y16: 1413.415 | Z16: 3192.707653 | AA16: 4606.122653 | AC16: 4606.122653 | AD16: 1413.415 | AE16: 3192.707653 | AH16: NORDESTE
B17: 4285.753775 | C17: 5 | E17: Refinaria Capuava (Recap) | F17: Av. Alberto Soares Sampaio, 2122-A Capuava – Mauá - SP | G17: São Paulo | H17: MAUÁ - SP | I17: Montes Claros - MG | J17: 2.729338775 | K17: 2.760933834 | L17: 2729.338775 | M17: =ROUND(((L17/(1-$O$6-$O$7-$O$8))-L17),2) -> 754.18 | N17: 3483.518775 | O17: 1002 | Q17: 280.45 | S17: 280.45 | T17: 61.56 | U17: 402.1 | V17: 744.11 | W17: 465 | X17: 58.125 | Y17: 802.235 | Z17: 3483.518775 | AA17: 4285.753775 | AC17: 4285.753775 | AD17: 802.235 | AE17: 3483.518775 | AH17: SUDESTE
B18: 4237.988834 | C18: 6 | E18: Refinaria Duque de Caxias (Reduc) | F18: Rodovia Washington Luiz, km 113,7 Campos Elíseos – Duque de Caxias - RJ CEP:25213-005 | G18: Rio de Janeiro | H18: DUQUE DE CAXIAS - RJ | I18: Montes Claros - MG | J18: - | K18: 2.760933834 | L18: 2760.933834 | M18: 762.91 | N18: 3523.843834 | O18: 827 | Q18: 236.17 | S18: 236.17 | T18: 51.84 | U18: 338.61 | V18: 626.62 | W18: 700.2 | X18: 87.525 | Y18: 714.145 | Z18: 3523.843834 | AA18: 4237.988834 | AC18: 4237.988834 | AD18: 714.145 | AE18: 3523.843834 | AH18: SUDESTE
B19: 5296.559222 | C19: 7 | E19: Refinaria Alberto Pasqualini (Refap) | F19: Avenida Getúlio Vargas, 11001 - Bairro Brigadeira Canoas - RS - Brasil CEP:92420-221 | G19: Rio Grande do Sul | H19: CANOAS - RS | I19: Montes Claros - MG | J19: 2.868824222 | K19: 2.854435567 | L19: 2868.824222 | M19: 792.73 | N19: 3661.554222 | O19: 2134 | Q19: 566.84 | S19: 566.84 | T19: 124.42 | U19: 812.72 | V19: 1503.98 | W19: 1048.2 | X19: 131.025 | Y19: 1635.005 | Z19: 3661.554222 | AA19: 5296.559222 | AC19: 5296.559222 | AD19: 1635.005 | AE19: 3661.554222 | AH19: SUL
B20: 4813.034531 | C20: 8 | E20: Unidade de Industrialização do Xisto (SIX) | F20: Rodovia do Xisto, BR 476, km 153 São Mateus do Sul – PR CEP 83900-000 | G20: Paraná | H20: SÃO MATEUS DO SUL - PR | I20: Montes Claros - MG | J20: 2.843592031 | K20: 2.854435567 | L20: 2843.592031 | M20: 785.75 | N20: 3629.342031 | O20: 1539 | Q20: 416.31 | S20: 416.31 | T20: 91.38 | U20: 596.89 | V20: 1104.58 | W20: 632.9 | X20: 79.1125 | Y20: 1183.6925 | Z20: 3629.342031 | AA20: 4813.034531 | AC20: 4813.034531 | AD20: 1183.6925 | AE20: 3629.342031 | AH20: SUL
B21: 3933.63206 | C21: 9 | E21: Refinaria Gabriel Passos (Regap) | F21: Av. Refinaria Gabriel Passos, 690 Distrito Industrial Paulo Camilo Sul Betim - MG CEP:32669-205 | G21: Minas Gerais | H21: BETIM - MG | I21: Montes Claros - MG | J21: 2.76742706 | K21: 2.760933834 | L21: 2767.42706 | M21: 764.71 | N21: 3532.13706 | O21: 431 | Q21: 135.98 | S21: 135.98 | T21: 29.84 | U21: 194.95 | V21: 360.77 | W21: 325.8 | X21: 40.725 | Y21: 401.495 | Z21: 3532.13706 | AA21: =IF(OR(Y21="",Z21=""),"",Y21+Z21) -> 3933.63206 | AC21: 3933.63206 | AD21: 401.495 | AE21: 3532.13706 | AH21: SUDESTE
B22: 4760.237031 | C22: 10 | E22: Refinaria Presidente Getúlio Vargas (Repar) | F22: Rodovia do Xisto, BR 476, km 16 Araucária - PR CEP:83707-440 | G22: Paraná | H22: ARAUCÁRIA - PR | I22: Montes Claros - MG | J22: 2.843592031 | K22: 2.854435567 | L22: 2843.592031 | M22: 785.75 | N22: 3629.342031 | O22: 1440 | Q22: 391.26 | S22: 391.26 | T22: 85.88 | U22: 560.98 | V22: 1038.12 | W22: 742.2 | X22: 92.775 | Y22: 1130.895 | Z22: 3629.342031 | AA22: 4760.237031 | AC22: 4760.237031 | AD22: 1130.895 | AE22: 3629.342031 | AH22: SUL
B23: 4311.903775 | C23: 11 | E23: Refinaria Presidente Bernardes (RPBC) | F23: Av. 9 de abril, 777 - Jardim das Indústrias Cubatão - SP CEP:11505-000 | G23: São Paulo | H23: CUBATÃO - SP | I23: Montes Claros - MG | J23: 2.729338775 | K23: 2.760933834 | L23: 2729.338775 | M23: 754.18 | N23: 3483.518775 | O23: 1041 | Q23: 290.31 | S23: 290.31 | T23: 63.72 | U23: 416.23 | V23: 770.26 | W23: 465 | X23: 58.125 | Y23: 828.385 | Z23: 3483.518775 | AA23: 4311.903775 | AC23: 4311.903775 | AD23: 828.385 | AE23: 3483.518775 | AH23: SUDESTE
B24: 4300.083775 | C24: 12 | E24: Refinaria de Paulínia (Replan) | F24: Rodovia SP 332 - Km. 130 Bonfim - Paulínia – SP CEP:13140-000 | G24: São Paulo | H24: PAULÍNIA - SP | I24: Montes Claros - MG | J24: 2.729338775 | K24: 2.760933834 | L24: 2729.338775 | M24: 754.18 | N24: 3483.518775 | O24: 1021 | Q24: 285.25 | S24: 285.25 | T24: 62.61 | U24: 408.98 | V24: 756.84 | W24: 477.8 | X24: 59.725 | Y24: 816.565 | Z24: 3483.518775 | AA24: 4300.083775 | AC24: 4300.083775 | AD24: 816.565 | AE24: 3483.518775 | AH24: SUDESTE
B25: 4260.128775 | C25: 13 | E25: Refinaria Henrique Lage (Revap) | F25: Rodovia Presidente Dutra, KM 143, S/N Bairro Jardim Diamante - São José dos Campos – SP CEP:12223-900 | G25: São Paulo | H25: SÃO JOSÉ DOS CAMPOS - SP | I25: Montes Claros - MG | J25: 2.729338775 | K25: 2.760933834 | L25: 2729.338775 | M25: 754.18 | N25: 3483.518775 | O25: 953 | Q25: 268.05 | S25: 268.05 | T25: 58.84 | U25: 384.32 | V25: 711.21 | W25: 523.2 | X25: 65.4 | Y25: 776.61 | Z25: 3483.518775 | AA25: 4260.128775 | AC25: 4260.128775 | AD25: 776.61 | AE25: 3483.518775 | AH25: SUDESTE
D34: Acre
D35: Alagoas
D36: Amapá
D37: Amazonas
D38: Bahia
D39: Ceará
D40: Distrito Federal
D41: Espírito Santo
D42: Goiás
D43: Maranhão
D44: Mato Grosso
D45: Mato Grosso do Sul
D46: Minas Gerais
D47: Pará
D48: Paraíba
D49: Paraná
D50: Pernambuco
D51: Piauí
D52: Rio de Janeiro
D53: Rio Grande do Norte
D54: Rio Grande do Sul
D55: Rondônia
D56: Roraima
D57: Santa Catarina
D58: São Paulo
D59: Sergipe
D60: Tocantins
D64: ASFALTOS DILUÍDOS CM-30
D65: ASFALTOS DILUÍDOS CM-70
D66: ASFALTOS DILUÍDOS CR-250
D67: ASFALTOS DILUÍDOS CR-70
D68: CAP MODIFICADO POR BORRACHA DE PNEU AB22
D69: CAP MODIFICADO POR BORRACHA DE PNEU AB8
D70: CAP MODIFICADO POR POLÍMERO 55-75-E
D71: CAP MODIFICADO POR POLÍMERO 60-85-E
D72: CAP MODIFICADO POR POLÍMERO 65-90-E
D73: CIMENTOS ASFÁLTICOS CAP-150-200
D74: CIMENTOS ASFÁLTICOS CAP-30-45
D75: CIMENTOS ASFÁLTICOS CAP-50-70
D76: CIMENTOS ASFÁLTICOS CAP-85-100
D77: EMULSÃO ASFÁLTICA CATIÔNICA DE RUPTURA CONTROLADA PARA SERVIÇO DE LAMA ASFÁLTICA
D78: EMULSÃO ASFÁLTICA DE RUPTURA LENTA CATIÔNICA PARA SERVIÇO DE LAMA ASFÁLTICA
D79: EMULSÃO ASFÁLTICA DE RUPTURA LENTA DE CARGA NEUTRA PARA SERVIÇO DE LAMA ASFÁLTICA
D80: EMULSÃO ASFÁLTICA PARA SERVIÇO DE IMPRIMAÇÃO
D81: EMULSÕES ASF. MOD. POR POLÍMEROS RC1C-E
D82: EMULSÕES ASF. MOD. POR POLÍMEROS RL1C-E
D83: EMULSÕES ASF. MOD. POR POLÍMEROS RM1C-E
D84: EMULSÕES ASF. MOD. POR POLÍMEROS RR1C-E
D85: EMULSÕES ASF. MOD. POR POLÍMEROS RR2C-E
D86: EMULSÕES ASFÁLTICAS RL-1C
D87: EMULSÕES ASFÁLTICAS RM-1C
D88: EMULSÕES ASFÁLTICAS RM-2C
D89: EMULSÕES ASFÁLTICAS RR-1C
D90: EMULSÕES ASFÁLTICAS RR-2C

Sheet RR-1C
C2: MEMÓRIA DE CÁLCULO
G6: TIPOLOGIA DO MATERIAL | I6: EMULSÕES ASFÁLTICAS RR-1C | M6: IMPOSTOS | N6: COFINS | O6: 0.0065 | P6: 0.0065
G7: ÍNDICE DE PAVIMENTAÇÃO DNIT | H7: 2014-07-01 | I7: ÍNDICE INICIAL | J7: 270.237 | N7: PIS | O7: 0.03 | P7: 0.03 | T7: LEGENDA | AC7: As empresas tributadas pelo Lucro Presumido pagam 0,65% de PIS e 3% de COFINS
H8: 2023-10-01 | I8: ÍNDICE FINAL | J8: 587.959 | N8: ICMS | O8: 0.18 | P8: 0.18 | Q8: =1-(O8/1) -> 0.82 | R8: =1-(P8/1) -> 0.82 | S8: =1-(Q8/1) -> 0.18 | T8: ENTRADA DE DADOS | V8: QUANT.ESTIMADA DE RR-1C (TON.): | Z8: =ORÇAMENTO!H55 -> 4.995 | AA8: TONELADAS | AC8: As empresas tributadas pelo Lucro Real pagam 1,65% de PIS e 7,60% de COFINS
G9: Data ANP | H9: =EAI!H9 -> 2025-02-01
C11: DATA-BASE | D11: PRODUTOS | E11: LOCALIDADES | J11: CUSTO ANP (R$/Kg) | L11: CUSTO ANP | M11: IMPOSTOS DO PRODUTO | N11: CUSTO DO PRODUTO COM IMPOSTOS | O11: DMT's | P11: DMT'S FLUVIAL | Q11: CUSTO DO TRANSPORTE RODOVIA PAVIMENTADA | R11: CUSTO DO TRANSPORTE FLUVIAL | S11: CUSTO DO TRANSPORTE TOTAL | T11: ICMS | U11: ATUALIZAÇÃO DO CUSTO DE TRANSPORTE | V11: CUSTO DO TRANSPORTE RODOVIA PAVIMENTADA COM IMPOSTOS E ATUALIZAÇÃO MONETÁRIA | W11: PEDÁGIO | Y11: TOTAL TRANSPORTE | Z11: AQUISIÇÃO DO PRODUTO | AA11: TOTAL GERAL ( TRANSP + AQUISIÇÃO) | AC11: 1 | AD11: 2 | AE11: 3
C12: =H8 -> 2023-10-01 | E12: REFINARIAS | F12: ENDEREÇO | G12: ESTADO | H12: CIDADE | I12: DESTINO | J12: ESTADO | K12: REGIÃO | L12: R$/t | M12: R$/t | N12: R$/t | O12: KM | P12: KM | Q12: R$/t | R12: R$/t | S12: R$/t | T12: R$/t | U12: R$/t | V12: R$/t | W12: CUSTO | X12: R$/t | Y12: R$/t | Z12: R$/t | AA12: R$/t | AC12: TOTAL GERAL ( TRANSP + AQUISIÇÃO) | AD12: TOTAL TRANSPORTE | AE12: AQUISIÇÃO DO PRODUTO
B13: =AA13 -> 4518.336314 | C13: 1 | D13: =I6 -> EMULSÕES ASFÁLTICAS RR-1C | E13: 'CENTRO OESTE ASFALTOS LTDA. | F13: SETOR DE INFLAMÁVEIS, S/N TRECHO 02 - LOTE 1.100 - GUARÁ - CEP:71225-000 | G13: Distrito Federal | H13: BRASÍLIA - DF | I13: =EAI!I13 -> Montes Claros - MG | J13: - | K13: 3.069585773 | L13: =IF(AND(J13="-",K13="-"),"",IF(AND(J13<>0,K13="-"),J13*1000,IF(AND(J13="-",K13<>0),K13*1000,IF(AND(J13<>0,K13<>0),J13*1000,"")))) -> 3069.585773 | M13: =ROUND(((L13/(1-$O$6-$O$7-$O$8))-L13),2) -> 848.2 | N13: =L13+M13 -> 3917.785773 | O13: 698 | Q13: =ROUND((26.939+0.253*O13),2) -> 203.53 | S13: =Q13+R13 -> 203.53 | T13: =TRUNC(S13*($O$8/(1-$O$8)),2) -> 44.67 | U13: =TRUNC(IF($J$7="","",(($J$8-$J$7)/$J$7)*(S13+T13)),2) -> 291.81 | V13: =S13+T13+U13 -> 540.01 | W13: 151.2 | X13: =EVEN($Z$8*2/28)*W13/$Z$8 -> 60.54054054 | Y13: =IF(AND(Q13="",T13=""),"",V13+X13) -> 600.5505405 | Z13: =IF(OR(L13="",M13=""),"",L13+M13) -> 3917.785773 | AA13: =IF(OR(Y13="",Z13=""),"",Y13+Z13) -> 4518.336314 | AC13: =AA13 -> 4518.336314 | AD13: =Y13 -> 600.5505405 | AE13: =Z13 -> 3917.785773 | AH13: =IF(OR(G13=$D$52,G13=$D$53,G13=$D$55,G13=$D$61,G13=$D$45,G13=$D$41,G13=$D$37,G13=$D$50,G13=$D$40),"NORDESTE",IF(OR(G13=$D$36,G13=$D$38,G13=$D$39,G13=$D$49,G13=$D$57,G13=$D$58,G13=$D$62),"NORTE",IF(OR(G13=$D$42,G13=$D$44,G13=$D$46,G13=$D$47),"CENTRO-OESTE",IF(OR(G13=$D$60,G13=$D$54,G13=$D$48,G13=$D$43),"SUDESTE",IF(OR(G13=$D$59,G13=$D$51,G13=$D$56),"SUL",""))))) -> CENTRO-OESTE
B14: =AA14 -> 4440.360214 | C14: 2 | E14: STRATURA ASFALTOS S/A | F14: AVENIDA PRESIDENTE WILSON, 08 - JUNDIAÍ - CEP:75115-100 | G14: Goiás | H14: ANÁPOLIS - GO | I14: =I13 -> Montes Claros - MG | J14: 2.943001896 | K14: 3.069585773 | L14: =IF(AND(J14="-",K14="-"),"",IF(AND(J14<>0,K14="-"),J14*1000,IF(AND(J14="-",K14<>0),K14*1000,IF(AND(J14<>0,K14<>0),J14*1000,"")))) -> 2943.001896 | M14: =ROUND(((L14/(1-$O$6-$O$7-$O$8))-L14),2) -> 813.22 | N14: =L14+M14 -> 3756.221896 | O14: 796 | Q14: =ROUND((26.939+0.253*O14),2) -> 228.33 | S14: =Q14+R14 -> 228.33 | T14: =TRUNC(S14*($O$8/(1-$O$8)),2) -> 50.12 | U14: =TRUNC(IF($J$7="","",(($J$8-$J$7)/$J$7)*(S14+T14)),2) -> 327.37 | V14: =S14+T14+U14 -> 605.82 | W14: 195.6 | X14: =EVEN($Z$8*2/28)*W14/$Z$8 -> 78.31831832 | Y14: 684.1383183 | Z14: 3756.221896 | AA14: =IF(OR(Y14="",Z14=""),"",Y14+Z14) -> 4440.360214 | AC14: =AA14 -> 4440.360214 | AD14: =Y14 -> 684.1383183 | AE14: 3756.221896 | AH14: CENTRO-OESTE
B15: 4459.177481 | C15: 3 | E15: DISTRIBUIDORA BRASILEIRA DE ASFALTO SA - DISBRAL | F15: VIA PRIMARIA 8, S/N QD-18, MODS. 24/47 - DAIAG - CEP:74980-970 | G15: Goiás | H15: APARECIDA DE GOIANIA - GO | I15: =I14 -> Montes Claros - MG | J15: 2.943001896 | K15: 3.069585773 | L15: 2943.001896 | M15: 813.22 | N15: 3756.221896 | O15: 843 | Q15: 240.22 | S15: 240.22 | T15: 52.73 | U15: 344.42 | V15: 637.37 | W15: 163.8 | X15: 65.58558559 | Y15: 702.9555856 | Z15: 3756.221896 | AA15: 4459.177481 | AC15: 4459.177481 | AD15: 702.9555856 | AE15: 3756.221896 | AH15: CENTRO-OESTE
A16: 2403 | B16: 4488.707481 | C16: 4 | E16: INDÚSTRIA NACIONAL DE ASFALTOS LTDA. | F16: VIA PRIMEIRA E SEGUNDA 3, S/N.º LOTES 01 A 10 - DISTRITO AGROINDUSTRIAL - CEP:75370-000 | G16: Goiás | H16: GOIANIRA - GO | I16: Montes Claros - MG | J16: 2.943001896 | K16: 3.069585773 | L16: 2943.001896 | M16: 813.22 | N16: 3756.221896 | O16: 887 | Q16: 251.35 | S16: 251.35 | T16: 55.17 | U16: 360.38 | V16: 666.9 | W16: 163.8 | X16: 65.58558559 | Y16: 732.4855856 | Z16: 3756.221896 | AA16: 4488.707481 | AC16: 4488.707481 | AD16: 732.4855856 | AE16: 3756.221896 | AH16: CENTRO-OESTE
B17: 4038.193634 | C17: 5 | E17: STRATURA ASFALTOS S/A | F17: RUA VICTOR RODRIGUES RESENDE, 333 - DISTRITO IND. DE UBERLÂNDIA - CEP:38405-440 | G17: Minas Gerais | H17: UBERLANDIA - MG | I17: Montes Claros - MG | J17: 2.727202613 | K17: 2.730001372 | L17: 2727.202613 | M17: 753.59 | N17: 3480.792613 | O17: 633 | Q17: 187.09 | S17: 187.09 | T17: 41.06 | U17: 268.23 | V17: 496.38 | W17: 152.4 | X17: 61.02102102 | Y17: 557.401021 | Z17: 3480.792613 | AA17: 4038.193634 | AC17: 4038.193634 | AD17: 557.401021 | AE17: 3480.792613 | AH17: SUDESTE
B18: 5936.287378 | C18: 6 | E18: ARAPETRO DISTRIBUIDORA DE PETRÓLEO LTDA. | F18: RUA 04, S/N° LOTES 17 A 20. - DISTRITO INDUSTRIAL 1/8 - CEP:78600-000 | G18: Mato Grosso | H18: BARRA DO GARCAS - MT | I18: =I17 -> Montes Claros - MG | J18: 3.90048906 | K18: 3.069585773 | L18: =IF(AND(J18="-",K18="-"),"",IF(AND(J18<>0,K18="-"),J18*1000,IF(AND(J18="-",K18<>0),K18*1000,IF(AND(J18<>0,K18<>0),J18*1000,"")))) -> 3900.48906 | M18: =ROUND(((L18/(1-$O$6-$O$7-$O$8))-L18),2) -> 1077.8 | N18: 4978.28906 | O18: 1204 | Q18: 331.55 | S18: 331.55 | T18: 72.77 | U18: 475.36 | V18: 879.68 | W18: 195.6 | X18: 78.31831832 | Y18: 957.9983183 | Z18: 4978.28906 | AA18: 5936.287378 | AH18: CENTRO-OESTE
B19: 3977.413063 | C19: 7 | E19: DISTRIBUIDORA BRASILEIRA DE ASFALTO SA - DISBRAL | F19: SÃO JUDAS TADEU, 288 - DISTRITO INDUSTRIAL - CEP:32450-000 | G19: Minas Gerais | H19: SARZEDO - MG | I19: Montes Claros - MG | J19: 2.727202613 | K19: 2.730001372 | L19: 2727.202613 | M19: 753.59 | N19: 3480.792613 | O19: 439 | Q19: 138.01 | S19: 138.01 | T19: 30.29 | U19: 197.87 | V19: 366.17 | W19: 325.8 | X19: 130.4504505 | Y19: 496.6204505 | Z19: 3480.792613 | AA19: 3977.413063 | AH19: SUDESTE
B20: 4676.327663 | C20: 8 | E20: 'INDÚSTRIA NACIONAL DE ASFALTOS LTDA. | F20: INDÚSTRIA NACIONAL DE ASFALTOS LTDA - CEP:77053-080 | G20: Tocantins | H20: PALMAS - TO | I20: Montes Claros - MG | J20: - | K20: 2.928897663 | L20: 2928.897663 | M20: 809.33 | N20: 3738.227663 | O20: 1291 | Q20: 353.56 | S20: 353.56 | T20: 77.61 | U20: 506.93 | V20: 938.1 | W20: 0 | X20: 0 | Y20: 938.1 | Z20: 3738.227663 | AA20: 4676.327663 | AH20: NORTE
B21: 4501.981632 | C21: 9 | E21: 'NTA - NOVAS TÉCNICAS DE ASFALTOS S/A | F21: RUA SOFIA ATAURI FADIN, 150 SALA A - B. SANTA TEREZINHA - CEP:13140-000 | G21: São Paulo | H21: PAULINIA - SP | I21: Montes Claros - MG | J21: 2.755585476 | K21: 2.730001372 | L21: 2755.585476 | M21: =ROUND(((L21/(1-$O$6-$O$7-$O$8))-L21),2) -> 761.43 | N21: 3517.015476 | O21: 1009 | Q21: 282.22 | S21: 282.22 | T21: 61.95 | U21: 404.64 | V21: 748.81 | W21: 589.8 | X21: 236.1561562 | Y21: 984.9661562 | Z21: 3517.015476 | AA21: 4501.981632 | AC21: 4501.981632 | AD21: 984.9661562 | AE21: 3517.015476 | AH21: SUDESTE
B22: 4424.894695 | C22: 10 | E22: COMPANHIA BRASILEIRA DE ASFALTOS DA AMAZÔNIA - IMPORTAÇÃO E EXPORTAÇÃO | F22: Avenida Doutor Olindo Dártora 2451, Galpão 02, Morro Grande - CEP:07726-555 | G22: São Paulo | H22: CAIEIRAS - SP | I22: Montes Claros - MG | J22: 2.755585476 | K22: 2.730001372 | L22: 2755.585476 | M22: =ROUND(((L22/(1-$O$6-$O$7-$O$8))-L22),2) -> 761.43 | N22: 3517.015476 | O22: 979 | Q22: 274.63 | S22: 274.63 | T22: 60.28 | U22: 393.75 | V22: 728.66 | W22: 447.6 | X22: 179.2192192 | Y22: 907.8792192 | Z22: 3517.015476 | AA22: 4424.894695 | AH22: SUDESTE
B23: 4986.706794 | C23: 11 | E23: BETUNEL INDÚSTRIA E COMÉRCIO LTDA. | F23: R 16 , 82, Vila Nova Campo Grande - CEP:79.103-834 | G23: Mato Grosso do Sul | H23: CAMPO GRANDE - MS | I23: Montes Claros - MG | J23: - | K23: 3.069585773 | L23: 3069.585773 | M23: =ROUND(((L23/(1-$O$6-$O$7-$O$8))-L23),2) -> 848.2 | N23: 3917.785773 | O23: 1395 | Q23: 379.87 | S23: 379.87 | T23: 83.38 | U23: 544.65 | V23: 1007.9 | W23: 152.4 | X23: 61.02102102 | Y23: 1068.921021 | Z23: 3917.785773 | AA23: 4986.706794 | AH23: CENTRO-OESTE
B24: 6377.730621 | C24: 12 | E24: BETUNEL INDÚSTRIA E COMÉRCIO LTDA. | F24: RUA N ESQUINA COM RUA X, S/N QD. IND. 7 L 01/08 - DIST. IND. - CEP:78015-285 | G24: Mato Grosso | H24: CUIABA - MT | I24: =I23 -> Montes Claros - MG | J24: 3.90048906 | K24: 3.069585773 | L24: 3900.48906 | M24: 1077.8 | N24: 4978.28906 | O24: 1678 | Q24: 451.47 | S24: 451.47 | T24: 99.1 | U24: 647.31 | V24: 1197.88 | W24: 503.4 | X24: 201.5615616 | Y24: 1399.441562 | Z24: 4978.28906 | AA24: 6377.730621 | AH24: CENTRO-OESTE
B25: 4424.944965 | C25: 13 | E25: VIAPOL LTDA. | F25: VITO ARDITO, 6401 KM 118,5 - JARDIM CAMPO GRANDE - CEP:12282-535 | G25: São Paulo | H25: CACAPAVA - SP | I25: =I24 -> Montes Claros - MG | J25: 2.755585476 | K25: 2.730001372 | L25: 2755.585476 | M25: 761.43 | N25: 3517.015476 | O25: 934 | Q25: 263.24 | S25: 263.24 | T25: 57.78 | U25: 377.42 | V25: 698.44 | W25: 523.2 | X25: 209.4894895 | Y25: 907.9294895 | Z25: 3517.015476 | AA25: 4424.944965 | AC25: 4424.944965 | AD25: 907.9294895 | AE25: 3517.015476 | AH25: SUDESTE
B26: 4392.701732 | C26: 14 | E26: STRATURA ASFALTOS S/A | F26: RUA LUIS DE CAMÕES, 26 - CAMPOS ELÍSEOS - CEP:25225-030 | G26: Rio de Janeiro | H26: DUQUE DE CAXIAS - RJ | I26: Montes Claros - MG | J26: - | K26: 2.730001372 | L26: 2730.001372 | M26: 754.37 | N26: 3484.371372 | O26: 829 | Q26: 236.68 | S26: 236.68 | T26: 51.95 | U26: 339.34 | V26: 627.97 | W26: 700.2 | X26: 280.3603604 | Y26: 908.3303604 | Z26: 3484.371372 | AA26: 4392.701732 | AC26: 4392.701732 | AD26: 908.3303604 | AE26: 3484.371372 | AH26: SUDESTE
B27: 4777.616407 | C27: 15 | E27: CASA DO ASFALTO DISTRIBUIDORA, INDÚSTRIA E COMÉRCIO DE ASFALTO LTDA. | F27: BR 376, PARQUE INDUSTRIAL, S/N LOTE 6/7/7-A-3-1 - GL.PATR.MARIALVA - CEP:86990-000 | G27: Paraná | H27: MARIALVA - PR | I27: =I26 -> Montes Claros - MG | J27: 2.7953997 | K27: 2.802789846 | L27: 2795.3997 | M27: 772.44 | N27: 3567.8397 | O27: 1358 | Q27: 370.51 | S27: 370.51 | T27: 81.33 | U27: 531.23 | V27: 983.07 | W27: 566.2 | X27: 226.7067067 | Y27: 1209.776707 | Z27: 3567.8397 | AA27: 4777.616407 | AC27: 4777.616407 | AD27: 1209.776707 | AE27: 3567.8397 | AH27: SUL
D36: Acre
D37: Alagoas
D38: Amapá
D39: Amazonas
D40: Bahia
D41: Ceará
D42: Distrito Federal
D43: Espírito Santo
D44: Goiás
D45: Maranhão
D46: Mato Grosso
D47: Mato Grosso do Sul
D48: Minas Gerais
D49: Pará
D50: Paraíba
D51: Paraná
D52: Pernambuco
D53: Piauí
D54: Rio de Janeiro
D55: Rio Grande do Norte
D56: Rio Grande do Sul
D57: Rondônia
D58: Roraima
D59: Santa Catarina
D60: São Paulo
D61: Sergipe
D62: Tocantins
D66: ASFALTOS DILUÍDOS CM-30
D67: ASFALTOS DILUÍDOS CM-70
D68: ASFALTOS DILUÍDOS CR-250
D69: ASFALTOS DILUÍDOS CR-70
D70: CAP MODIFICADO POR BORRACHA DE PNEU AB22
D71: CAP MODIFICADO POR BORRACHA DE PNEU AB8
D72: CAP MODIFICADO POR POLÍMERO 55-75-E
D73: CAP MODIFICADO POR POLÍMERO 60-85-E
D74: CAP MODIFICADO POR POLÍMERO 65-90-E
D75: CIMENTOS ASFÁLTICOS CAP-150-200
D76: CIMENTOS ASFÁLTICOS CAP-30-45
D77: CIMENTOS ASFÁLTICOS CAP-50-70
D78: CIMENTOS ASFÁLTICOS CAP-85-100
D79: EMULSÃO ASFÁLTICA CATIÔNICA DE RUPTURA CONTROLADA PARA SERVIÇO DE LAMA ASFÁLTICA
D80: EMULSÃO ASFÁLTICA DE RUPTURA LENTA CATIÔNICA PARA SERVIÇO DE LAMA ASFÁLTICA
D81: EMULSÃO ASFÁLTICA DE RUPTURA LENTA DE CARGA NEUTRA PARA SERVIÇO DE LAMA ASFÁLTICA
D82: EMULSÃO ASFÁLTICA PARA SERVIÇO DE IMPRIMAÇÃO
D83: EMULSÕES ASF. MOD. POR POLÍMEROS RC1C-E
D84: EMULSÕES ASF. MOD. POR POLÍMEROS RL1C-E
D85: EMULSÕES ASF. MOD. POR POLÍMEROS RM1C-E
D86: EMULSÕES ASF. MOD. POR POLÍMEROS RR1C-E
D87: EMULSÕES ASF. MOD. POR POLÍMEROS RR2C-E
D88: EMULSÕES ASFÁLTICAS RL-1C
D89: EMULSÕES ASFÁLTICAS RM-1C
D90: EMULSÕES ASFÁLTICAS RM-2C
D91: EMULSÕES ASFÁLTICAS RR-1C
D92: EMULSÕES ASFÁLTICAS RR-2C

Sheet CAP
C2: MEMÓRIA DE CÁLCULO
G6: TIPOLOGIA DO MATERIAL | I6: CIMENTOS ASFÁLTICOS CAP-50-70 | M6: IMPOSTOS | N6: COFINS | O6: 0.0065 | P6: 0.0065
G7: ÍNDICE DE PAVIMENTAÇÃO DNIT | H7: 2014-07-01 | I7: ÍNDICE INICIAL | J7: 270.237 | N7: PIS | O7: 0.03 | P7: 0.03 | T7: LEGENDA | AC7: As empresas tributadas pelo Lucro Presumido pagam 0,65% de PIS e 3% de COFINS
H8: 2023-10-01 | I8: ÍNDICE FINAL | J8: 587.959 | N8: ICMS | O8: 0.18 | P8: 0.18 | Q8: =1-(O8/1) -> 0.82 | R8: =1-(P8/1) -> 0.82 | S8: =1-(Q8/1) -> 0.18 | T8: ENTRADA DE DADOS | V8: QUANT.ESTIMADA DE CAP 50/70 (TON.): | Z8: =ORÇAMENTO!H57 -> 70 | AA8: TONELADAS | AC8: As empresas tributadas pelo Lucro Real pagam 1,65% de PIS e 7,60% de COFINS
G9: Data ANP | H9: =EAI!H9 -> 2025-02-01
C11: DATA-BASE | D11: PRODUTOS | E11: LOCALIDADES | J11: CUSTO ANP (R$/Kg) | L11: CUSTO ANP | M11: IMPOSTOS DO PRODUTO | N11: CUSTO DO PRODUTO COM IMPOSTOS | O11: DMT's | P11: DMT's FLUVIAL | Q11: CUSTO DO TRANSPORTE RODOVIA PAVIMENTADA | R11: CUSTO DO TRANSPORTE FLUVIAL | S11: CUSTO DO TRANSPORTE TOTAL | T11: ICMS | U11: ATUALIZAÇÃO DO CUSTO DE TRANSPORTE | V11: CUSTO DO TRANSPORTE RODOVIA PAVIMENTADA COM IMPOSTOS E ATUALIZAÇÃO MONETÁRIA | W11: PEDÁGIO | Y11: TOTAL TRANSPORTE | Z11: AQUISIÇÃO DO PRODUTO | AA11: TOTAL GERAL ( TRANSP + AQUISIÇÃO) | AC11: 1 | AD11: 2 | AE11: 3
C12: =H8 -> 2023-10-01 | E12: REFINARIAS | F12: ENDEREÇO | G12: ESTADO | H12: CIDADE | I12: DESTINO | J12: ESTADO | K12: REGIÃO | L12: R$/t | M12: R$/t | N12: R$/t | O12: KM | P12: KM | Q12: R$/t | R12: R$/t | S12: R$/t | T12: R$/t | U12: R$/t | V12: R$/t | W12: CUSTO | X12: R$/t | Y12: R$/t | Z12: R$/t | AA12: R$/t | AC12: TOTAL GERAL ( TRANSP + AQUISIÇÃO) | AD12: TOTAL TRANSPORTE | AE12: AQUISIÇÃO DO PRODUTO
B13: =AA13 -> 6374.268315 | C13: 1 | D13: =I6 -> CIMENTOS ASFÁLTICOS CAP-50-70 | E13: Refinaria Abreu e Lima | F13: Rodovia PE 60, Km 10 - Ipojuca - PE CEP:55590-000 | G13: Pernambuco | H13: IPOJUCA - PE | I13: =EAI!I13 -> Montes Claros - MG | J13: - | K13: 4.063332601 | L13: =IF(AND(J13="-",K13="-"),"",IF(AND(J13<>0,K13="-"),J13*1000,IF(AND(J13="-",K13<>0),K13*1000,IF(AND(J13<>0,K13<>0),J13*1000,"")))) -> 4063.332601 | M13: =ROUND(((L13/(1-$O$6-$O$7-$O$8))-L13),2) -> 1122.8 | N13: =L13+M13 -> 5186.132601 | O13: =EAI!O13 -> 1631 | Q13: =ROUND((26.939+0.253*O13),2) -> 439.58 | S13: =Q13+R13 -> 439.58 | T13: =TRUNC(S13*($O$8/(1-$O$8)),2) -> 96.49 | U13: =TRUNC(IF($J$7="","",(($J$8-$J$7)/$J$7)*(S13+T13)),2) -> 630.26 | V13: =S13+T13+U13 -> 1166.33 | W13: =EAI!W13 -> 254.4 | X13: =EVEN($Z$8*2/28)*W13/$Z$8 -> 21.80571429 | Y13: =IF(AND(Q13="",T13=""),"",V13+X13) -> 1188.135714 | Z13: =IF(OR(L13="",M13=""),"",L13+M13) -> 5186.132601 | AA13: =IF(OR(Y13="",Z13=""),"",Y13+Z13) -> 6374.268315 | AC13: =AA13 -> 6374.268315 | AD13: =Y13 -> 1188.135714 | AE13: =Z13 -> 5186.132601 | AH13: =IF(OR(G13=$D$51,G13=$D$52,G13=$D$54,G13=$D$60,G13=$D$44,G13=$D$40,G13=$D$36,G13=$D$49,G13=$D$39),"NORDESTE",IF(OR(G13=$D$35,G13=$D$37,G13=$D$38,G13=$D$48,G13=$D$56,G13=$D$57,G13=$D$61),"NORTE",IF(OR(G13=$D$41,G13=$D$43,G13=$D$45,G13=$D$46),"CENTRO-OESTE",IF(OR(G13=$D$59,G13=$D$53,G13=$D$47,G13=$D$42),"SUDESTE",IF(OR(G13=$D$58,G13=$D$50,G13=$D$55),"SUL",""))))) -> NORDESTE
B14: =AA14 -> 6564.178315 | C14: 3 | E14: Refinaria Potiguar Clara Camarão | F14: Rodovia RN 221, KM 25 - Guamaré - RN CEP:59598-000 | G14: Rio Grande do Norte | H14: GUAMARÉ - RN | I14: =I13 -> Montes Claros - MG | J14: - | K14: 4.063332601 | L14: 4063.332601 | M14: =ROUND(((L14/(1-$O$6-$O$7-$O$8))-L14),2) -> 1122.8 | N14: =L14+M14 -> 5186.132601 | O14: =EAI!O14 -> 1923 | Q14: =ROUND((26.939+0.253*O14),2) -> 513.46 | S14: =Q14+R14 -> 513.46 | T14: =TRUNC(S14*($O$8/(1-$O$8)),2) -> 112.71 | U14: =TRUNC(IF($J$7="","",(($J$8-$J$7)/$J$7)*(S14+T14)),2) -> 736.19 | V14: =S14+T14+U14 -> 1362.36 | W14: =EAI!W14 -> 183 | X14: =EVEN($Z$8*2/28)*W14/$Z$8 -> 15.68571429 | Y14: 1378.045714 | Z14: 5186.132601 | AA14: =IF(OR(Y14="",Z14=""),"",Y14+Z14) -> 6564.178315 | AC14: =AA14 -> 6564.178315 | AD14: =Y14 -> 1378.045714 | AE14: 5186.132601 | AH14: NORDESTE
B15: 5911.386144 | C15: 4 | E15: Refinaria Landulpho Alves (RLAM) | F15: Rodovia BA 523, KM 4 – Mataripe São Francisco do Conde - BA CEP:43900-000 | G15: Bahia | H15: SÃO FRANCISCO DO CONDE - BA | I15: =I14 -> Montes Claros - MG | J15: 4.06171043 | K15: 4.063332601 | L15: 4061.71043 | M15: =ROUND(((L15/(1-$O$6-$O$7-$O$8))-L15),2) -> 1122.35 | N15: 5184.06043 | O15: =EAI!O15 -> 951 | Q15: =ROUND((26.939+0.253*O15),2) -> 267.54 | S15: 267.54 | T15: 58.72 | U15: 383.58 | V15: 709.84 | W15: =EAI!W15 -> 204 | X15: 17.48571429 | Y15: 727.3257143 | Z15: 5184.06043 | AA15: 5911.386144 | AC15: 5911.386144 | AD15: 727.3257143 | AE15: 5184.06043 | AH15: NORDESTE
A16: 2403 | B16: 6571.388494 | C16: 5 | E16: Refinaria Lubrificantes e Derivados do Nordeste (Lubnor) | F16: Av. Leite Barbosa, s/nº - Mucuripe Fortaleza - Ceará CEP:60180-420 | G16: Ceará | H16: FORTALEZA - CE | I16: Montes Claros - MG | J16: 4.04690278 | K16: 4.063332601 | L16: 4046.90278 | M16: =ROUND(((L16/(1-$O$6-$O$7-$O$8))-L16),2) -> 1118.26 | N16: 5165.16278 | O16: =EAI!O16 -> 1965 | Q16: 524.08 | S16: 524.08 | T16: 115.04 | U16: 751.42 | V16: 1390.54 | W16: =EAI!W16 -> 183 | X16: 15.68571429 | Y16: 1406.225714 | Z16: 5165.16278 | AA16: 6571.388494 | AC16: 6571.388494 | AD16: 1406.225714 | AE16: 5165.16278 | AH16: NORDESTE
B17: 5676.670828 | C17: 6 | E17: Refinaria Capuava (Recap) | F17: Av. Alberto Soares Sampaio, 2122-A Capuava – Mauá - SP | G17: São Paulo | H17: MAUÁ - SP | I17: Montes Claros - MG | J17: 3.833433685 | K17: 3.814083778 | L17: 3833.433685 | M17: =ROUND(((L17/(1-$O$6-$O$7-$O$8))-L17),2) -> 1059.27 | N17: 4892.703685 | O17: =EAI!O17 -> 1002 | Q17: 280.45 | S17: 280.45 | T17: 61.56 | U17: 402.1 | V17: 744.11 | W17: =EAI!W17 -> 465 | X17: 39.85714286 | Y17: 783.9671429 | Z17: 4892.703685 | AA17: 5676.670828 | AC17: 5676.670828 | AD17: 783.9671429 | AE17: 4892.703685 | AH17: SUDESTE
B18: 5571.919404 | C18: 7 | E18: Refinaria Duque de Caxias (Reduc) | F18: Rodovia Washington Luiz, km 113,7 Campos Elíseos – Duque de Caxias - RJ CEP:25213-005 | G18: Rio de Janeiro | H18: DUQUE DE CAXIAS - RJ | I18: Montes Claros - MG | J18: 3.827622261 | K18: 3.814083778 | L18: 3827.622261 | M18: 1057.66 | N18: 4885.282261 | O18: =EAI!O18 -> 827 | Q18: 236.17 | S18: 236.17 | T18: 51.84 | U18: 338.61 | V18: 626.62 | W18: =EAI!W18 -> 700.2 | X18: 60.01714286 | Y18: 686.6371429 | Z18: 4885.282261 | AA18: 5571.919404 | AC18: 5571.919404 | AD18: 686.6371429 | AE18: 4885.282261 | AH18: SUDESTE
B19: 6579.555888 | C19: 8 | E19: Refinaria Alberto Pasqualini (Refap) | F19: Avenida Getúlio Vargas, 11001 - Bairro Brigadeira Canoas - RS - Brasil CEP:92420-221 | G19: Rio Grande do Sul | H19: CANOAS - RS | I19: Montes Claros - MG | J19: 3.906320173 | K19: 3.904069686 | L19: 3906.320173 | M19: 1079.41 | N19: 4985.730173 | O19: =EAI!O19 -> 2134 | Q19: 566.84 | S19: 566.84 | T19: 124.42 | U19: 812.72 | V19: 1503.98 | W19: =EAI!W19 -> 1048.2 | X19: 89.84571429 | Y19: 1593.825714 | Z19: 4985.730173 | AA19: 6579.555888 | AC19: 6579.555888 | AD19: 1593.825714 | AE19: 4985.730173 | AH19: SUL
B20: 6139.061458 | C20: 9 | E20: Unidade de Industrialização do Xisto (SIX) | F20: Rodovia do Xisto, BR 476, km 153 São Mateus do Sul – PR CEP 83900-000 | G20: Paraná | H20: SÃO MATEUS DO SUL - PR | I20: Montes Claros - MG | J20: 3.902012887 | K20: 3.904069686 | L20: 3902.012887 | M20: 1078.22 | N20: 4980.232887 | O20: =EAI!O20 -> 1539 | Q20: 416.31 | S20: 416.31 | T20: 91.38 | U20: 596.89 | V20: 1104.58 | W20: =EAI!W20 -> 632.9 | X20: 54.24857143 | Y20: 1158.828571 | Z20: 4980.232887 | AA20: 6139.061458 | AC20: 6139.061458 | AD20: 1158.828571 | AE20: 4980.232887 | AH20: SUL
B21: 5203.900845 | C21: 10 | E21: Refinaria Gabriel Passos (Regap) | F21: Av. Refinaria Gabriel Passos, 690 Distrito Industrial Paulo Camilo Sul Betim - MG CEP:32669-205 | G21: Minas Gerais | H21: BETIM - MG | I21: Montes Claros - MG | J21: 3.772715131 | K21: 3.814083778 | L21: 3772.715131 | M21: 1042.49 | N21: 4815.205131 | O21: =EAI!O21 -> 431 | Q21: 135.98 | S21: 135.98 | T21: 29.84 | U21: 194.95 | V21: 360.77 | W21: =EAI!W21 -> 325.8 | X21: 27.92571429 | Y21: 388.6957143 | Z21: 4815.205131 | AA21: =IF(OR(Y21="",Z21=""),"",Y21+Z21) -> 5203.900845 | AC21: 5203.900845 | AD21: 388.6957143 | AE21: 4815.205131 | AH21: SUDESTE
B22: 6081.97003 | C22: 11 | E22: Refinaria Presidente Getúlio Vargas (Repar) | F22: Rodovia do Xisto, BR 476, km 16 Araucária - PR CEP:83707-440 | G22: Paraná | H22: ARAUCÁRIA - PR | I22: Montes Claros - MG | J22: 3.902012887 | K22: 3.904069686 | L22: 3902.012887 | M22: 1078.22 | N22: 4980.232887 | O22: =EAI!O22 -> 1440 | Q22: 391.26 | S22: 391.26 | T22: 85.88 | U22: 560.98 | V22: 1038.12 | W22: =EAI!W22 -> 742.2 | X22: 63.61714286 | Y22: 1101.737143 | Z22: 4980.232887 | AA22: 6081.97003 | AC22: 6081.97003 | AD22: 1101.737143 | AE22: 4980.232887 | AH22: SUL
B23: 5702.820828 | C23: 12 | E23: Refinaria Presidente Bernardes (RPBC) | F23: Av. 9 de abril, 777 - Jardim das Indústrias Cubatão - SP CEP:11505-000 | G23: São Paulo | H23: CUBATÃO - SP | I23: Montes Claros - MG | J23: 3.833433685 | K23: 3.814083778 | L23: 3833.433685 | M23: 1059.27 | N23: 4892.703685 | O23: =EAI!O23 -> 1041 | Q23: 290.31 | S23: 290.31 | T23: 63.72 | U23: 416.23 | V23: 770.26 | W23: =EAI!W23 -> 465 | X23: 39.85714286 | Y23: 810.1171429 | Z23: 4892.703685 | AA23: 5702.820828 | AC23: 5702.820828 | AD23: 810.1171429 | AE23: 4892.703685 | AH23: SUDESTE
B24: 5690.49797 | C24: 13 | E24: Refinaria de Paulínia (Replan) | F24: Rodovia SP 332 - Km. 130 Bonfim - Paulínia – SP CEP:13140-000 | G24: São Paulo | H24: PAULÍNIA - SP | I24: Montes Claros - MG | J24: 3.833433685 | K24: 3.814083778 | L24: 3833.433685 | M24: 1059.27 | N24: 4892.703685 | O24: =EAI!O24 -> 1021 | Q24: 285.25 | S24: 285.25 | T24: 62.61 | U24: 408.98 | V24: 756.84 | W24: =EAI!W24 -> 477.8 | X24: 40.95428571 | Y24: 797.7942857 | Z24: 4892.703685 | AA24: 5690.49797 | AC24: 5690.49797 | AD24: 797.7942857 | AE24: 4892.703685 | AH24: SUDESTE
B25: 5648.759399 | C25: 14 | E25: Refinaria Henrique Lage (Revap) | F25: Rodovia Presidente Dutra, KM 143, S/N Bairro Jardim Diamante - São José dos Campos – SP CEP:12223-900 | G25: São Paulo | H25: SÃO JOSÉ DOS CAMPOS - SP | I25: Montes Claros - MG | J25: 3.833433685 | K25: 3.814083778 | L25: 3833.433685 | M25: 1059.27 | N25: 4892.703685 | O25: =EAI!O25 -> 953 | Q25: 268.05 | S25: 268.05 | T25: 58.84 | U25: 384.32 | V25: 711.21 | W25: =EAI!W25 -> 523.2 | X25: 44.84571429 | Y25: 756.0557143 | Z25: 4892.703685 | AA25: 5648.759399 | AC25: 5648.759399 | AD25: 756.0557143 | AE25: 4892.703685 | AH25: SUDESTE
D35: Acre
D36: Alagoas
D37: Amapá
D38: Amazonas
D39: Bahia
D40: Ceará
D41: Distrito Federal
D42: Espírito Santo
D43: Goiás
D44: Maranhão
D45: Mato Grosso
D46: Mato Grosso do Sul
D47: Minas Gerais
D48: Pará
D49: Paraíba
D50: Paraná
D51: Pernambuco
D52: Piauí
D53: Rio de Janeiro
D54: Rio Grande do Norte
D55: Rio Grande do Sul
D56: Rondônia
D57: Roraima
D58: Santa Catarina
D59: São Paulo
D60: Sergipe
D61: Tocantins
D65: ASFALTOS DILUÍDOS CM-30
D66: ASFALTOS DILUÍDOS CM-70
D67: ASFALTOS DILUÍDOS CR-250
D68: ASFALTOS DILUÍDOS CR-70
D69: CAP MODIFICADO POR BORRACHA DE PNEU AB22
D70: CAP MODIFICADO POR BORRACHA DE PNEU AB8
D71: CAP MODIFICADO POR POLÍMERO 55-75-E
D72: CAP MODIFICADO POR POLÍMERO 60-85-E
D73: CAP MODIFICADO POR POLÍMERO 65-90-E
D74: CIMENTOS ASFÁLTICOS CAP-150-200
D75: CIMENTOS ASFÁLTICOS CAP-30-45
D76: CIMENTOS ASFÁLTICOS CAP-50-70
D77: CIMENTOS ASFÁLTICOS CAP-85-100
D78: EMULSÃO ASFÁLTICA CATIÔNICA DE RUPTURA CONTROLADA PARA SERVIÇO DE LAMA ASFÁLTICA
D79: EMULSÃO ASFÁLTICA DE RUPTURA LENTA CATIÔNICA PARA SERVIÇO DE LAMA ASFÁLTICA
D80: EMULSÃO ASFÁLTICA DE RUPTURA LENTA DE CARGA NEUTRA PARA SERVIÇO DE LAMA ASFÁLTICA
D81: EMULSÃO ASFÁLTICA PARA SERVIÇO DE IMPRIMAÇÃO
D82: EMULSÕES ASF. MOD. POR POLÍMEROS RC1C-E
D83: EMULSÕES ASF. MOD. POR POLÍMEROS RL1C-E
D84: EMULSÕES ASF. MOD. POR POLÍMEROS RM1C-E
D85: EMULSÕES ASF. MOD. POR POLÍMEROS RR1C-E
D86: EMULSÕES ASF. MOD. POR POLÍMEROS RR2C-E
D87: EMULSÕES ASFÁLTICAS RL-1C
D88: EMULSÕES ASFÁLTICAS RM-1C
D89: EMULSÕES ASFÁLTICAS RM-2C
D90: EMULSÕES ASFÁLTICAS RR-1C
D91: EMULSÕES ASFÁLTICAS RR-2C

Sheet MAT.ASF
B9: PLANILHA RESUMO - MATERIAIS ASFÁLTICOS
B12: DATA-BASE | C12: PRODUTOS | D12: LOCALIDADES | H12: CUSTO ANP (R$/Kg) | J12: CUSTO ANP | K12: IMPOSTOS DO PRODUTO | L12: CUSTO DO PRODUTO COM IMPOSTOS | M12: DMT's | N12: DMT's | O12: CUSTO DO TRANSPORTE TOTAL | P12: ICMS | Q12: ATUALIZAÇÃO DO CUSTO DE TRANSPORTE | R12: CUSTO DO TRANSPORTE RODOVIA PAVIMENTADA COM IMPOSTOS E ATUALIZAÇÃO MONETÁRIA | S12: PEDÁGIO | U12: TOTAL TRANSPORTE | V12: TOTAL PRODUTO | W12: TOTAL GERAL
B13: =CAP!H9 -> 2025-02-01 | D13: REFINARIAS | E13: ENDEREÇO | F13: ORIGEM - REFINARIAS / DISTRIBUIDORAS | G13: DESTINO | H13: ESTADO | I13: REGIÃO | J13: R$/t | K13: R$/t | L13: R$/t | M13: KM | N13: KM | O13: R$/t | P13: R$/t | Q13: R$/t | R13: R$/t | S13: CUSTO POR EIXO | T13: R$/t | U13: R$/t | V13: R$/t | W13: R$/t
B14: 1 | C14: CAP 50/70 | D14: Refinaria Abreu e Lima | E14: Rodovia PE 60, Km 10 - Ipojuca - PE CEP:55590-000 | F14: =VLOOKUP($W14,CAP!$B:$AA,7,FALSE) -> BETIM - MG | G14: =VLOOKUP($W14,CAP!$B:$AA,8,FALSE) -> Montes Claros - MG | H14: =VLOOKUP($W14,CAP!$B:$AA,9,FALSE) -> 3.772715131 | I14: =VLOOKUP($W14,CAP!$B:$AA,10,FALSE) -> 3.814083778 | J14: =VLOOKUP($W14,CAP!$B:$AA,11,FALSE) -> 3772.715131 | K14: =VLOOKUP($W14,CAP!$B:$AA,12,FALSE) -> 1042.49 | L14: =VLOOKUP($W14,CAP!$B:$AA,13,FALSE) -> 4815.205131 | M14: =VLOOKUP($W14,CAP!$B$13:$AA$25,14,FALSE) -> 431 | N14: =VLOOKUP($W14,'[1]Transporte Cap 50-70'!$B:$AA,15,FALSE) ->  | O14: =VLOOKUP($W14,CAP!$B:$AA,18,FALSE) -> 135.98 | P14: =VLOOKUP($W14,CAP!$B:$AA,19,FALSE) -> 29.84 | Q14: =VLOOKUP($W14,CAP!$B:$AA,20,FALSE) -> 194.95 | R14: =VLOOKUP($W14,CAP!$B:$AA,21,FALSE) -> 360.77 | S14: =VLOOKUP($W14,CAP!$B:$AA,22,FALSE) -> 325.8 | T14: =VLOOKUP($W14,CAP!$B:$AA,23,FALSE) -> 27.92571429 | U14: =VLOOKUP($W14,CAP!$B:$AA,24,FALSE) -> 388.6957143 | V14: =VLOOKUP($W14,CAP!$B:$AA,25,FALSE) -> 4815.205131 | W14: =SMALL(CAP!$AA$13:$AA$25,1) -> 5203.900845
B15: 2 | D15: Refinaria Potiguar Clara Camarão | E15: Rodovia RN 221, KM 25 - Guamaré - RN CEP:59598-000 | F15: =VLOOKUP($W15,CAP!$B:$AA,7,FALSE) -> DUQUE DE CAXIAS - RJ | G15: =VLOOKUP($W15,CAP!$B:$AA,8,FALSE) -> Montes Claros - MG | H15: =VLOOKUP($W15,CAP!$B:$AA,9,FALSE) -> 3.827622261 | I15: =VLOOKUP($W15,CAP!$B:$AA,10,FALSE) -> 3.814083778 | J15: =VLOOKUP($W15,CAP!$B:$AA,11,FALSE) -> 3827.622261 | K15: =VLOOKUP($W15,CAP!$B:$AA,12,FALSE) -> 1057.66 | L15: =VLOOKUP($W15,CAP!$B:$AA,13,FALSE) -> 4885.282261 | M15: =VLOOKUP($W15,CAP!$B$13:$AA$25,14,FALSE) -> 827 | N15: =VLOOKUP($W15,'[1]Transporte Cap 50-70'!$B:$AA,15,FALSE) ->  | O15: =VLOOKUP($W15,CAP!$B:$AA,18,FALSE) -> 236.17 | P15: =VLOOKUP($W15,CAP!$B:$AA,19,FALSE) -> 51.84 | Q15: =VLOOKUP($W15,CAP!$B:$AA,20,FALSE) -> 338.61 | R15: =VLOOKUP($W15,CAP!$B:$AA,21,FALSE) -> 626.62 | S15: =VLOOKUP($W15,CAP!$B:$AA,22,FALSE) -> 700.2 | T15: =VLOOKUP($W15,CAP!$B:$AA,23,FALSE) -> 60.01714286 | U15: =VLOOKUP($W15,CAP!$B:$AA,24,FALSE) -> 686.6371429 | V15: =VLOOKUP($W15,CAP!$B:$AA,25,FALSE) -> 4885.282261 | W15: =SMALL(CAP!$AA$13:$AA$25,2) -> 5571.919404
B16: 3 | D16: Complexo Petroquímico do Rio de Janeiro (Comperj) | E16: Rodovia Estadual RJ-116 - Km 5,2 - Acesso A-1, s/n, Complemento Sambaetiba - Zona Urbana do 4º Distrito de Itaboraí - RJ CEP:24841-203 | F16: =VLOOKUP($W16,CAP!$B:$AA,7,FALSE) -> SÃO JOSÉ DOS CAMPOS - SP | G16: =VLOOKUP($W16,CAP!$B:$AA,8,FALSE) -> Montes Claros - MG | H16: =VLOOKUP($W16,CAP!$B:$AA,9,FALSE) -> 3.833433685 | I16: =VLOOKUP($W16,CAP!$B:$AA,10,FALSE) -> 3.814083778 | J16: =VLOOKUP($W16,CAP!$B:$AA,11,FALSE) -> 3833.433685 | K16: =VLOOKUP($W16,CAP!$B:$AA,12,FALSE) -> 1059.27 | L16: =VLOOKUP($W16,CAP!$B:$AA,13,FALSE) -> 4892.703685 | M16: =VLOOKUP($W16,CAP!$B$13:$AA$25,14,FALSE) -> 953 | N16: =VLOOKUP($W16,'[1]Transporte Cap 50-70'!$B:$AA,15,FALSE) ->  | O16: =VLOOKUP($W16,CAP!$B:$AA,18,FALSE) -> 268.05 | P16: =VLOOKUP($W16,CAP!$B:$AA,19,FALSE) -> 58.84 | Q16: =VLOOKUP($W16,CAP!$B:$AA,20,FALSE) -> 384.32 | R16: =VLOOKUP($W16,CAP!$B:$AA,21,FALSE) -> 711.21 | S16: =VLOOKUP($W16,CAP!$B:$AA,22,FALSE) -> 523.2 | T16: =VLOOKUP($W16,CAP!$B:$AA,23,FALSE) -> 44.84571429 | U16: =VLOOKUP($W16,CAP!$B:$AA,24,FALSE) -> 756.0557143 | V16: =VLOOKUP($W16,CAP!$B:$AA,25,FALSE) -> 4892.703685 | W16: =SMALL(CAP!$AA$13:$AA$25,3) -> 5648.759399
B17: 4 | F17: =VLOOKUP($W17,CAP!$B:$AA,7,FALSE) -> MAUÁ - SP | G17: =VLOOKUP($W17,CAP!$B:$AA,8,FALSE) -> Montes Claros - MG | H17: =VLOOKUP($W17,CAP!$B:$AA,9,FALSE) -> 3.833433685 | I17: =VLOOKUP($W17,CAP!$B:$AA,10,FALSE) -> 3.814083778 | J17: =VLOOKUP($W17,CAP!$B:$AA,11,FALSE) -> 3833.433685 | K17: =VLOOKUP($W17,CAP!$B:$AA,12,FALSE) -> 1059.27 | L17: =VLOOKUP($W17,CAP!$B:$AA,13,FALSE) -> 4892.703685 | M17: =VLOOKUP($W17,CAP!$B$13:$AA$25,14,FALSE) -> 1002 | N17: =VLOOKUP($W17,'[1]Transporte Cap 50-70'!$B:$AA,15,FALSE) ->  | O17: =VLOOKUP($W17,CAP!$B:$AA,18,FALSE) -> 280.45 | P17: =VLOOKUP($W17,CAP!$B:$AA,19,FALSE) -> 61.56 | Q17: =VLOOKUP($W17,CAP!$B:$AA,20,FALSE) -> 402.1 | R17: =VLOOKUP($W17,CAP!$B:$AA,21,FALSE) -> 744.11 | S17: =VLOOKUP($W17,CAP!$B:$AA,22,FALSE) -> 465 | T17: =VLOOKUP($W17,CAP!$B:$AA,23,FALSE) -> 39.85714286 | U17: =VLOOKUP($W17,CAP!$B:$AA,24,FALSE) -> 783.9671429 | V17: =VLOOKUP($W17,CAP!$B:$AA,25,FALSE) -> 4892.703685 | W17: =SMALL(CAP!$AA$13:$AA$25,4) -> 5676.670828
B18: 5 | F18: =VLOOKUP($W18,CAP!$B:$AA,7,FALSE) -> PAULÍNIA - SP | G18: =VLOOKUP($W18,CAP!$B:$AA,8,FALSE) -> Montes Claros - MG | H18: =VLOOKUP($W18,CAP!$B:$AA,9,FALSE) -> 3.833433685 | I18: =VLOOKUP($W18,CAP!$B:$AA,10,FALSE) -> 3.814083778 | J18: =VLOOKUP($W18,CAP!$B:$AA,11,FALSE) -> 3833.433685 | K18: =VLOOKUP($W18,CAP!$B:$AA,12,FALSE) -> 1059.27 | L18: =VLOOKUP($W18,CAP!$B:$AA,13,FALSE) -> 4892.703685 | M18: =VLOOKUP($W18,CAP!$B$13:$AA$25,14,FALSE) -> 1021 | N18: =VLOOKUP($W18,'[1]Transporte Cap 50-70'!$B:$AA,15,FALSE) ->  | O18: =VLOOKUP($W18,CAP!$B:$AA,18,FALSE) -> 285.25 | P18: =VLOOKUP($W18,CAP!$B:$AA,19,FALSE) -> 62.61 | Q18: =VLOOKUP($W18,CAP!$B:$AA,20,FALSE) -> 408.98 | R18: =VLOOKUP($W18,CAP!$B:$AA,21,FALSE) -> 756.84 | S18: =VLOOKUP($W18,CAP!$B:$AA,22,FALSE) -> 477.8 | T18: =VLOOKUP($W18,CAP!$B:$AA,23,FALSE) -> 40.95428571 | U18: =VLOOKUP($W18,CAP!$B:$AA,24,FALSE) -> 797.7942857 | V18: =VLOOKUP($W18,CAP!$B:$AA,25,FALSE) -> 4892.703685 | W18: =SMALL(CAP!$AA$13:$AA$25,5) -> 5690.49797
B19: 6 | F19: =VLOOKUP($W19,CAP!$B:$AA,7,FALSE) -> CUBATÃO - SP | G19: =VLOOKUP($W19,CAP!$B:$AA,8,FALSE) -> Montes Claros - MG | H19: =VLOOKUP($W19,CAP!$B:$AA,9,FALSE) -> 3.833433685 | I19: =VLOOKUP($W19,CAP!$B:$AA,10,FALSE) -> 3.814083778 | J19: =VLOOKUP($W19,CAP!$B:$AA,11,FALSE) -> 3833.433685 | K19: =VLOOKUP($W19,CAP!$B:$AA,12,FALSE) -> 1059.27 | L19: =VLOOKUP($W19,CAP!$B:$AA,13,FALSE) -> 4892.703685 | M19: =VLOOKUP($W19,CAP!$B$13:$AA$25,14,FALSE) -> 1041 | N19: =VLOOKUP($W19,'[1]Transporte Cap 50-70'!$B:$AA,15,FALSE) ->  | O19: =VLOOKUP($W19,CAP!$B:$AA,18,FALSE) -> 290.31 | P19: =VLOOKUP($W19,CAP!$B:$AA,19,FALSE) -> 63.72 | Q19: =VLOOKUP($W19,CAP!$B:$AA,20,FALSE) -> 416.23 | R19: =VLOOKUP($W19,CAP!$B:$AA,21,FALSE) -> 770.26 | S19: =VLOOKUP($W19,CAP!$B:$AA,22,FALSE) -> 465 | T19: =VLOOKUP($W19,CAP!$B:$AA,23,FALSE) -> 39.85714286 | U19: =VLOOKUP($W19,CAP!$B:$AA,24,FALSE) -> 810.1171429 | V19: =VLOOKUP($W19,CAP!$B:$AA,25,FALSE) -> 4892.703685 | W19: =SMALL(CAP!$AA$13:$AA$25,6) -> 5702.820828
B21: 1 | C21: EMULSÃO ASFÁLTICA PARA IMPRIMAÇÃO (EAI) | D21: Refinaria Abreu e Lima | E21: Rodovia PE 60, Km 10 - Ipojuca - PE CEP:55590-000 | F21: =VLOOKUP($W21,EAI!$B$13:$AA$24,7,FALSE) -> BETIM - MG | G21: =VLOOKUP($W21,EAI!$B$13:$AA$24,8,FALSE) -> Montes Claros - MG | H21: =VLOOKUP($W21,EAI!$B$13:$AA$24,9,FALSE) -> 2.76742706 | I21: =VLOOKUP($W21,EAI!$B$13:$AA$24,10,FALSE) -> 2.760933834 | J21: =VLOOKUP($W21,EAI!$B$13:$AA$24,11,FALSE) -> 2767.42706 | K21: =VLOOKUP($W21,EAI!$B$13:$AA$24,12,FALSE) -> 764.71 | L21: =VLOOKUP($W21,EAI!$B$13:$AA$24,13,FALSE) -> 3532.13706 | M21: =VLOOKUP($W21,EAI!$B$13:$AA$24,14,FALSE) -> 431 | N21: =VLOOKUP($W21,'[1]Transporte CM-30'!$B$13:$AA$25,15,FALSE) ->  | O21: =VLOOKUP($W21,EAI!$B$13:$AA$24,18,FALSE) -> 135.98 | P21: =VLOOKUP($W21,EAI!$B$13:$AA$24,19,FALSE) -> 29.84 | Q21: =VLOOKUP($W21,EAI!$B$13:$AA$24,20,FALSE) -> 194.95 | R21: =VLOOKUP($W21,EAI!$B$13:$AA$24,21,FALSE) -> 360.77 | S21: =VLOOKUP($W21,EAI!$B$13:$AA$24,22,FALSE) -> 325.8 | T21: =VLOOKUP($W21,EAI!$B$13:$AA$24,23,FALSE) -> 40.725 | U21: =VLOOKUP($W21,EAI!$B$13:$AA$24,24,FALSE) -> 401.495 | V21: =VLOOKUP($W21,EAI!$B:$AA,25,FALSE) -> 3532.13706 | W21: =SMALL(EAI!$AA$13:$AA$24,1) -> 3933.63206
B22: 2 | D22: Refinaria Potiguar Clara Camarão | E22: Rodovia RN 221, KM 25 - Guamaré - RN CEP:59598-000 | F22: =VLOOKUP($W22,EAI!$B$13:$AA$24,7,FALSE) -> SÃO FRANCISCO DO CONDE - BA | G22: =VLOOKUP($W22,EAI!$B$13:$AA$24,8,FALSE) -> Montes Claros - MG | H22: =VLOOKUP($W22,EAI!$B$13:$AA$24,9,FALSE) -> - | I22: =VLOOKUP($W22,EAI!$B$13:$AA$24,10,FALSE) -> 2.710401795 | J22: =VLOOKUP($W22,EAI!$B$13:$AA$24,11,FALSE) -> 2710.401795 | K22: =VLOOKUP($W22,EAI!$B$13:$AA$24,12,FALSE) -> 748.95 | L22: =VLOOKUP($W22,EAI!$B$13:$AA$24,13,FALSE) -> 3459.351795 | M22: =VLOOKUP($W22,EAI!$B$13:$AA$24,14,FALSE) -> 951 | N22: =VLOOKUP($W22,'[1]Transporte CM-30'!$B$13:$AA$25,15,FALSE) ->  | O22: =VLOOKUP($W22,EAI!$B$13:$AA$24,18,FALSE) -> 267.54 | P22: =VLOOKUP($W22,EAI!$B$13:$AA$24,19,FALSE) -> 58.72 | Q22: =VLOOKUP($W22,EAI!$B$13:$AA$24,20,FALSE) -> 383.58 | R22: =VLOOKUP($W22,EAI!$B$13:$AA$24,21,FALSE) -> 709.84 | S22: =VLOOKUP($W22,EAI!$B$13:$AA$24,22,FALSE) -> 204 | T22: =VLOOKUP($W22,EAI!$B$13:$AA$24,23,FALSE) -> 25.5 | U22: =VLOOKUP($W22,EAI!$B$13:$AA$24,24,FALSE) -> 735.34 | V22: =VLOOKUP($W22,EAI!$B:$AA,25,FALSE) -> 3459.351795 | W22: =SMALL(EAI!$AA$13:$AA$24,2) -> 4194.691795
B23: 3 | D23: Complexo Petroquímico do Rio de Janeiro (Comperj) | E23: Rodovia Estadual RJ-116 - Km 5,2 - Acesso A-1, s/n, Complemento Sambaetiba - Zona Urbana do 4º Distrito de Itaboraí - RJ CEP:24841-203 | F23: =VLOOKUP($W23,EAI!$B$13:$AA$24,7,FALSE) -> DUQUE DE CAXIAS - RJ | G23: =VLOOKUP($W23,EAI!$B$13:$AA$24,8,FALSE) -> Montes Claros - MG | H23: =VLOOKUP($W23,EAI!$B$13:$AA$24,9,FALSE) -> - | I23: =VLOOKUP($W23,EAI!$B$13:$AA$24,10,FALSE) -> 2.760933834 | J23: =VLOOKUP($W23,EAI!$B$13:$AA$24,11,FALSE) -> 2760.933834 | K23: =VLOOKUP($W23,EAI!$B$13:$AA$24,12,FALSE) -> 762.91 | L23: =VLOOKUP($W23,EAI!$B$13:$AA$24,13,FALSE) -> 3523.843834 | M23: =VLOOKUP($W23,EAI!$B$13:$AA$24,14,FALSE) -> 827 | N23: =VLOOKUP($W23,'[1]Transporte CM-30'!$B$13:$AA$25,15,FALSE) ->  | O23: =VLOOKUP($W23,EAI!$B$13:$AA$24,18,FALSE) -> 236.17 | P23: =VLOOKUP($W23,EAI!$B$13:$AA$24,19,FALSE) -> 51.84 | Q23: =VLOOKUP($W23,EAI!$B$13:$AA$24,20,FALSE) -> 338.61 | R23: =VLOOKUP($W23,EAI!$B$13:$AA$24,21,FALSE) -> 626.62 | S23: =VLOOKUP($W23,EAI!$B$13:$AA$24,22,FALSE) -> 700.2 | T23: =VLOOKUP($W23,EAI!$B$13:$AA$24,23,FALSE) -> 87.525 | U23: =VLOOKUP($W23,EAI!$B$13:$AA$24,24,FALSE) -> 714.145 | V23: =VLOOKUP($W23,EAI!$B:$AA,25,FALSE) -> 3523.843834 | W23: =SMALL(EAI!$AA$13:$AA$24,3) -> 4237.988834
B24: 4 | F24: =VLOOKUP($W24,EAI!$B$13:$AA$24,7,FALSE) -> MAUÁ - SP | G24: =VLOOKUP($W24,EAI!$B$13:$AA$24,8,FALSE) -> Montes Claros - MG | H24: =VLOOKUP($W24,EAI!$B$13:$AA$24,9,FALSE) -> 2.729338775 | I24: =VLOOKUP($W24,EAI!$B$13:$AA$24,10,FALSE) -> 2.760933834 | J24: =VLOOKUP($W24,EAI!$B$13:$AA$24,11,FALSE) -> 2729.338775 | K24: =VLOOKUP($W24,EAI!$B$13:$AA$24,12,FALSE) -> 754.18 | L24: =VLOOKUP($W24,EAI!$B$13:$AA$24,13,FALSE) -> 3483.518775 | M24: =VLOOKUP($W24,EAI!$B$13:$AA$24,14,FALSE) -> 1002 | N24: =VLOOKUP($W24,'[1]Transporte CM-30'!$B$13:$AA$25,15,FALSE) ->  | O24: =VLOOKUP($W24,EAI!$B$13:$AA$24,18,FALSE) -> 280.45 | P24: =VLOOKUP($W24,EAI!$B$13:$AA$24,19,FALSE) -> 61.56 | Q24: =VLOOKUP($W24,EAI!$B$13:$AA$24,20,FALSE) -> 402.1 | R24: =VLOOKUP($W24,EAI!$B$13:$AA$24,21,FALSE) -> 744.11 | S24: =VLOOKUP($W24,EAI!$B$13:$AA$24,22,FALSE) -> 465 | T24: =VLOOKUP($W24,EAI!$B$13:$AA$24,23,FALSE) -> 58.125 | U24: =VLOOKUP($W24,EAI!$B$13:$AA$24,24,FALSE) -> 802.235 | V24: =VLOOKUP($W24,EAI!$B:$AA,25,FALSE) -> 3483.518775 | W24: =SMALL(EAI!$AA$13:$AA$24,4) -> 4285.753775
B25: 5 | F25: =VLOOKUP($W25,EAI!$B$13:$AA$24,7,FALSE) -> PAULÍNIA - SP | G25: =VLOOKUP($W25,EAI!$B$13:$AA$24,8,FALSE) -> Montes Claros - MG | H25: =VLOOKUP($W25,EAI!$B$13:$AA$24,9,FALSE) -> 2.729338775 | I25: =VLOOKUP($W25,EAI!$B$13:$AA$24,10,FALSE) -> 2.760933834 | J25: =VLOOKUP($W25,EAI!$B$13:$AA$24,11,FALSE) -> 2729.338775 | K25: =VLOOKUP($W25,EAI!$B$13:$AA$24,12,FALSE) -> 754.18 | L25: =VLOOKUP($W25,EAI!$B$13:$AA$24,13,FALSE) -> 3483.518775 | M25: =VLOOKUP($W25,EAI!$B$13:$AA$24,14,FALSE) -> 1021 | N25: =VLOOKUP($W25,'[1]Transporte CM-30'!$B$13:$AA$25,15,FALSE) ->  | O25: =VLOOKUP($W25,EAI!$B$13:$AA$24,18,FALSE) -> 285.25 | P25: =VLOOKUP($W25,EAI!$B$13:$AA$24,19,FALSE) -> 62.61 | Q25: =VLOOKUP($W25,EAI!$B$13:$AA$24,20,FALSE) -> 408.98 | R25: =VLOOKUP($W25,EAI!$B$13:$AA$24,21,FALSE) -> 756.84 | S25: =VLOOKUP($W25,EAI!$B$13:$AA$24,22,FALSE) -> 477.8 | T25: =VLOOKUP($W25,EAI!$B$13:$AA$24,23,FALSE) -> 59.725 | U25: =VLOOKUP($W25,EAI!$B$13:$AA$24,24,FALSE) -> 816.565 | V25: =VLOOKUP($W25,EAI!$B:$AA,25,FALSE) -> 3483.518775 | W25: =SMALL(EAI!$AA$13:$AA$24,5) -> 4300.083775
B26: 6 | F26: =VLOOKUP($W26,EAI!$B$13:$AA$24,7,FALSE) -> CUBATÃO - SP | G26: =VLOOKUP($W26,EAI!$B$13:$AA$24,8,FALSE) -> Montes Claros - MG | H26: =VLOOKUP($W26,EAI!$B$13:$AA$24,9,FALSE) -> 2.729338775 | I26: =VLOOKUP($W26,EAI!$B$13:$AA$24,10,FALSE) -> 2.760933834 | J26: =VLOOKUP($W26,EAI!$B$13:$AA$24,11,FALSE) -> 2729.338775 | K26: =VLOOKUP($W26,EAI!$B$13:$AA$24,12,FALSE) -> 754.18 | L26: =VLOOKUP($W26,EAI!$B$13:$AA$24,13,FALSE) -> 3483.518775 | M26: =VLOOKUP($W26,EAI!$B$13:$AA$24,14,FALSE) -> 1041 | N26: =VLOOKUP($W26,'[1]Transporte CM-30'!$B$13:$AA$25,15,FALSE) ->  | O26: =VLOOKUP($W26,EAI!$B$13:$AA$24,18,FALSE) -> 290.31 | P26: =VLOOKUP($W26,EAI!$B$13:$AA$24,19,FALSE) -> 63.72 | Q26: =VLOOKUP($W26,EAI!$B$13:$AA$24,20,FALSE) -> 416.23 | R26: =VLOOKUP($W26,EAI!$B$13:$AA$24,21,FALSE) -> 770.26 | S26: =VLOOKUP($W26,EAI!$B$13:$AA$24,22,FALSE) -> 465 | T26: =VLOOKUP($W26,EAI!$B$13:$AA$24,23,FALSE) -> 58.125 | U26: =VLOOKUP($W26,EAI!$B$13:$AA$24,24,FALSE) -> 828.385 | V26: =VLOOKUP($W26,EAI!$B:$AA,25,FALSE) -> 3483.518775 | W26: =SMALL(EAI!$AA$13:$AA$24,6) -> 4311.903775
B28: 1 | C28: RR1-C | D28: Refinaria Abreu e Lima | E28: Rodovia PE 60, Km 10 - Ipojuca - PE CEP:55590-000 | F28: =VLOOKUP($W28,'RR-1C'!$B:$AA,7,FALSE) -> SARZEDO - MG | G28: =VLOOKUP($W28,'RR-1C'!$B:$AA,8,FALSE) -> Montes Claros - MG | H28: =VLOOKUP($W28,'RR-1C'!$B:$AA,9,FALSE) -> 2.727202613 | I28: =VLOOKUP($W28,'RR-1C'!$B:$AA,10,FALSE) -> 2.730001372 | J28: =VLOOKUP($W28,'RR-1C'!$B:$AA,11,FALSE) -> 2727.202613 | K28: =VLOOKUP($W28,'RR-1C'!$B:$AA,12,FALSE) -> 753.59 | L28: =VLOOKUP($W28,'RR-1C'!$B:$AA,13,FALSE) -> 3480.792613 | M28: =VLOOKUP($W28,'RR-1C'!$B:$AA,14,FALSE) -> 439 | N28: =VLOOKUP($W28,'[1]Transporte RR-1C'!$B:$AA,15,FALSE) ->  | O28: =VLOOKUP($W28,'RR-1C'!$B:$AA,18,FALSE) -> 138.01 | P28: =VLOOKUP($W28,'RR-1C'!$B:$AA,19,FALSE) -> 30.29 | Q28: =VLOOKUP($W28,'RR-1C'!$B:$AA,20,FALSE) -> 197.87 | R28: =VLOOKUP($W28,'RR-1C'!$B:$AA,21,FALSE) -> 366.17 | S28: =VLOOKUP($W28,'RR-1C'!$B:$AA,22,FALSE) -> 325.8 | T28: =VLOOKUP($W28,'RR-1C'!$B:$AA,23,FALSE) -> 130.4504505 | U28: =VLOOKUP($W28,'RR-1C'!$B:$AA,24,FALSE) -> 496.6204505 | V28: =VLOOKUP($W28,'RR-1C'!$B:$AA,25,FALSE) -> 3480.792613 | W28: =SMALL('RR-1C'!$AA$13:$AA$27,1) -> 3977.413063
B29: 2 | D29: Refinaria Potiguar Clara Camarão | E29: Rodovia RN 221, KM 25 - Guamaré - RN CEP:59598-000 | F29: =VLOOKUP($W29,'RR-1C'!$B:$AA,7,FALSE) -> UBERLANDIA - MG | G29: =VLOOKUP($W29,'RR-1C'!$B:$AA,8,FALSE) -> Montes Claros - MG | H29: =VLOOKUP($W29,'RR-1C'!$B:$AA,9,FALSE) -> 2.727202613 | I29: =VLOOKUP($W29,'RR-1C'!$B:$AA,10,FALSE) -> 2.730001372 | J29: =VLOOKUP($W29,'RR-1C'!$B:$AA,11,FALSE) -> 2727.202613 | K29: =VLOOKUP($W29,'RR-1C'!$B:$AA,12,FALSE) -> 753.59 | L29: =VLOOKUP($W29,'RR-1C'!$B:$AA,13,FALSE) -> 3480.792613 | M29: =VLOOKUP($W29,'RR-1C'!$B:$AA,14,FALSE) -> 633 | N29: =VLOOKUP($W29,'[1]Transporte RR-1C'!$B:$AA,15,FALSE) ->  | O29: =VLOOKUP($W29,'RR-1C'!$B:$AA,18,FALSE) -> 187.09 | P29: =VLOOKUP($W29,'RR-1C'!$B:$AA,19,FALSE) -> 41.06 | Q29: =VLOOKUP($W29,'RR-1C'!$B:$AA,20,FALSE) -> 268.23 | R29: =VLOOKUP($W29,'RR-1C'!$B:$AA,21,FALSE) -> 496.38 | S29: =VLOOKUP($W29,'RR-1C'!$B:$AA,22,FALSE) -> 152.4 | T29: =VLOOKUP($W29,'RR-1C'!$B:$AA,23,FALSE) -> 61.02102102 | U29: =VLOOKUP($W29,'RR-1C'!$B:$AA,24,FALSE) -> 557.401021 | V29: =VLOOKUP($W29,'RR-1C'!$B:$AA,25,FALSE) -> 3480.792613 | W29: =SMALL('RR-1C'!$AA$13:$AA$27,2) -> 4038.193634
B30: 3 | D30: Complexo Petroquímico do Rio de Janeiro (Comperj) | E30: Rodovia Estadual RJ-116 - Km 5,2 - Acesso A-1, s/n, Complemento Sambaetiba - Zona Urbana do 4º Distrito de Itaboraí - RJ CEP:24841-203 | F30: =VLOOKUP($W30,'RR-1C'!$B:$AA,7,FALSE) -> DUQUE DE CAXIAS - RJ | G30: =VLOOKUP($W30,'RR-1C'!$B:$AA,8,FALSE) -> Montes Claros - MG | H30: =VLOOKUP($W30,'RR-1C'!$B:$AA,9,FALSE) -> - | I30: =VLOOKUP($W30,'RR-1C'!$B:$AA,10,FALSE) -> 2.730001372 | J30: =VLOOKUP($W30,'RR-1C'!$B:$AA,11,FALSE) -> 2730.001372 | K30: =VLOOKUP($W30,'RR-1C'!$B:$AA,12,FALSE) -> 754.37 | L30: =VLOOKUP($W30,'RR-1C'!$B:$AA,13,FALSE) -> 3484.371372 | M30: =VLOOKUP($W30,'RR-1C'!$B:$AA,14,FALSE) -> 829 | N30: =VLOOKUP($W30,'[1]Transporte RR-1C'!$B:$AA,15,FALSE) ->  | O30: =VLOOKUP($W30,'RR-1C'!$B:$AA,18,FALSE) -> 236.68 | P30: =VLOOKUP($W30,'RR-1C'!$B:$AA,19,FALSE) -> 51.95 | Q30: =VLOOKUP($W30,'RR-1C'!$B:$AA,20,FALSE) -> 339.34 | R30: =VLOOKUP($W30,'RR-1C'!$B:$AA,21,FALSE) -> 627.97 | S30: =VLOOKUP($W30,'RR-1C'!$B:$AA,22,FALSE) -> 700.2 | T30: =VLOOKUP($W30,'RR-1C'!$B:$AA,23,FALSE) -> 280.3603604 | U30: =VLOOKUP($W30,'RR-1C'!$B:$AA,24,FALSE) -> 908.3303604 | V30: =VLOOKUP($W30,'RR-1C'!$B:$AA,25,FALSE) -> 3484.371372 | W30: =SMALL('RR-1C'!$AA$13:$AA$27,3) -> 4392.701732
B31: 4 | D31: Refinaria Abreu e Lima | E31: Rodovia PE 60, Km 10 - Ipojuca - PE CEP:55590-000 | F31: =VLOOKUP($W31,'RR-1C'!$B:$AA,7,FALSE) -> CAIEIRAS - SP | G31: =VLOOKUP($W31,'RR-1C'!$B:$AA,8,FALSE) -> Montes Claros - MG | H31: =VLOOKUP($W31,'RR-1C'!$B:$AA,9,FALSE) -> 2.755585476 | I31: =VLOOKUP($W31,'RR-1C'!$B:$AA,10,FALSE) -> 2.730001372 | J31: =VLOOKUP($W31,'RR-1C'!$B:$AA,11,FALSE) -> 2755.585476 | K31: =VLOOKUP($W31,'RR-1C'!$B:$AA,12,FALSE) -> 761.43 | L31: =VLOOKUP($W31,'RR-1C'!$B:$AA,13,FALSE) -> 3517.015476 | M31: =VLOOKUP($W31,'RR-1C'!$B:$AA,14,FALSE) -> 979 | N31: =VLOOKUP($W31,'[1]Transporte RR-1C'!$B:$AA,15,FALSE) ->  | O31: =VLOOKUP($W31,'RR-1C'!$B:$AA,18,FALSE) -> 274.63 | P31: =VLOOKUP($W31,'RR-1C'!$B:$AA,19,FALSE) -> 60.28 | Q31: =VLOOKUP($W31,'RR-1C'!$B:$AA,20,FALSE) -> 393.75 | R31: =VLOOKUP($W31,'RR-1C'!$B:$AA,21,FALSE) -> 728.66 | S31: =VLOOKUP($W31,'RR-1C'!$B:$AA,22,FALSE) -> 447.6 | T31: =VLOOKUP($W31,'RR-1C'!$B:$AA,23,FALSE) -> 179.2192192 | U31: =VLOOKUP($W31,'RR-1C'!$B:$AA,24,FALSE) -> 907.8792192 | V31: =VLOOKUP($W31,'RR-1C'!$B:$AA,25,FALSE) -> 3517.015476 | W31: =SMALL('RR-1C'!$AA$13:$AA$27,4) -> 4424.894695
B32: 5 | D32: Refinaria Potiguar Clara Camarão | E32: Rodovia RN 221, KM 25 - Guamaré - RN CEP:59598-000 | F32: =VLOOKUP($W32,'RR-1C'!$B:$AA,7,FALSE) -> CACAPAVA - SP | G32: =VLOOKUP($W32,'RR-1C'!$B:$AA,8,FALSE) -> Montes Claros - MG | H32: =VLOOKUP($W32,'RR-1C'!$B:$AA,9,FALSE) -> 2.755585476 | I32: =VLOOKUP($W32,'RR-1C'!$B:$AA,10,FALSE) -> 2.730001372 | J32: =VLOOKUP($W32,'RR-1C'!$B:$AA,11,FALSE) -> 2755.585476 | K32: =VLOOKUP($W32,'RR-1C'!$B:$AA,12,FALSE) -> 761.43 | L32: =VLOOKUP($W32,'RR-1C'!$B:$AA,13,FALSE) -> 3517.015476 | M32: =VLOOKUP($W32,'RR-1C'!$B:$AA,14,FALSE) -> 934 | N32: =VLOOKUP($W32,'[1]Transporte RR-1C'!$B:$AA,15,FALSE) ->  | O32: =VLOOKUP($W32,'RR-1C'!$B:$AA,18,FALSE) -> 263.24 | P32: =VLOOKUP($W32,'RR-1C'!$B:$AA,19,FALSE) -> 57.78 | Q32: =VLOOKUP($W32,'RR-1C'!$B:$AA,20,FALSE) -> 377.42 | R32: =VLOOKUP($W32,'RR-1C'!$B:$AA,21,FALSE) -> 698.44 | S32: =VLOOKUP($W32,'RR-1C'!$B:$AA,22,FALSE) -> 523.2 | T32: =VLOOKUP($W32,'RR-1C'!$B:$AA,23,FALSE) -> 209.4894895 | U32: =VLOOKUP($W32,'RR-1C'!$B:$AA,24,FALSE) -> 907.9294895 | V32: =VLOOKUP($W32,'RR-1C'!$B:$AA,25,FALSE) -> 3517.015476 | W32: =SMALL('RR-1C'!$AA$13:$AA$27,5) -> 4424.944965
B33: 6 | D33: Complexo Petroquímico do Rio de Janeiro (Comperj) | E33: Rodovia Estadual RJ-116 - Km 5,2 - Acesso A-1, s/n, Complemento Sambaetiba - Zona Urbana do 4º Distrito de Itaboraí - RJ CEP:24841-203 | F33: =VLOOKUP($W33,'RR-1C'!$B:$AA,7,FALSE) -> ANÁPOLIS - GO | G33: =VLOOKUP($W33,'RR-1C'!$B:$AA,8,FALSE) -> Montes Claros - MG | H33: =VLOOKUP($W33,'RR-1C'!$B:$AA,9,FALSE) -> 2.943001896 | I33: =VLOOKUP($W33,'RR-1C'!$B:$AA,10,FALSE) -> 3.069585773 | J33: =VLOOKUP($W33,'RR-1C'!$B:$AA,11,FALSE) -> 2943.001896 | K33: =VLOOKUP($W33,'RR-1C'!$B:$AA,12,FALSE) -> 813.22 | L33: =VLOOKUP($W33,'RR-1C'!$B:$AA,13,FALSE) -> 3756.221896 | M33: =VLOOKUP($W33,'RR-1C'!$B:$AA,14,FALSE) -> 796 | N33: =VLOOKUP($W33,'[1]Transporte RR-1C'!$B:$AA,15,FALSE) ->  | O33: =VLOOKUP($W33,'RR-1C'!$B:$AA,18,FALSE) -> 228.33 | P33: =VLOOKUP($W33,'RR-1C'!$B:$AA,19,FALSE) -> 50.12 | Q33: =VLOOKUP($W33,'RR-1C'!$B:$AA,20,FALSE) -> 327.37 | R33: =VLOOKUP($W33,'RR-1C'!$B:$AA,21,FALSE) -> 605.82 | S33: =VLOOKUP($W33,'RR-1C'!$B:$AA,22,FALSE) -> 195.6 | T33: =VLOOKUP($W33,'RR-1C'!$B:$AA,23,FALSE) -> 78.31831832 | U33: =VLOOKUP($W33,'RR-1C'!$B:$AA,24,FALSE) -> 684.1383183 | V33: =VLOOKUP($W33,'RR-1C'!$B:$AA,25,FALSE) -> 3756.221896 | W33: =SMALL('RR-1C'!$AA$13:$AA$27,6) -> 4440.360214
